Workbook

Sheet 1. Utility_Info
AB1: Algoma Power Inc.
AB2: Atikokan Hydro Inc.
AB3: Attawapiskat Power Corporation
AB4: Bluewater Power Distribution Corp.
AB5: Brant County Power
AB6: Brantford Power Inc.
AB7: Burlington Hydro Inc.
AB8: Cambridge and North Dumfries Hydro
AB9: Canadian Niagara Power Inc. – Eastern Ontario Power/Fort Erie/Port Colborne
AB10: Centre Wellington Hydro Ltd.
AB11: Chapleau Public Utilities Corporation
AB12: COLLUS Power Corp.
H13: Version | I13: 4 | AB13: Cooperative Hydro Embrun Inc.
AB14: E.L.K. Energy Inc.
C15: Utility Name | D15: Alectra Utilities Corporation - Brampton Rate Zone | AB15: Enersource Hydro Mississauga Inc.
AB16: Entegrus Powerlines Inc.
C17: Assigned EB Number | D17: EB-2025-0252 | AB17: ENWIN Utilities Ltd.
AB18: Erie Thames Powerlines Corp.
C19: Name and Title | D19: Natalie Yeates, Director, Regulatory Affairs | AB19: Espanola Regional Hydro Distribution Corporation
AB20: Essex Powerlines Corporation
C21: Phone Number | D21: 416-617-1959 | AB21: Festival Hydro Inc.
AB22: Fort Albany Power Corporation
C23: Email Address | D23: natalie.yeates@alectrautilities.com | AB23: Fort Frances Power Corporation
AB24: Greater Sudbury Hydro Inc.
C25: Date | AB25: Grimsby Power Inc.
AB26: Guelph Hydro Electric Systems Inc.
C27: ICM Project | D27: 2018 CCRA | AB27: Halton Hills Hydro Inc.
AB28: Hearst Power Distribution Co. Ltd.
A29: Note: Drop-down lists are shaded blue; Input cells are shaded green.
AB31: Horizon Utilities Corporation
AB32: Hydro 2000 Inc.
AB33: Hydro Hawkesbury Inc.
AB34: Hydro One Brampton Networks Inc.
AB35: Hydro One Networks Inc.
AB36: Hydro One Remote Communities Inc.
AB37: Hydro Ottawa Limited
AB38: Innisfil Hydro Dist. Systems Limited
AB39: Kashechewan Power Corporation
AB40: Kenora Hydro Electric Corporation Ltd.
AB41: Kingston Hydro Corporation
AB42: Kitchener-Wilmot Hydro Inc.
AB43: Lakefront Utilities Inc.
AB44: Lakeland Power Distribution Ltd.
AB45: London Hydro Inc.
AB46: Midland Power Utility Corporation
AB47: Milton Hydro Distribution Inc.
AB48: Newmarket – Tay Power Distribution Ltd.
AB49: Niagara Peninsula Energy Inc.
AB50: Niagara-on-the-Lake Hydro Inc.
AB51: Norfolk Power Distribution Ltd.
AB52: North Bay Hydro Distribution Limited
AB53: Northern Ontario Wires Inc.
AB54: Oakville Hydro Distribution Inc.
AB55: Orangeville Hydro Limited
AB56: Orillia Power Distribution Corp.
AB57: Oshawa PUC Networks Inc.
AB58: Ottawa River Power Corporation
AB59: Parry Sound Power Corporation
AB60: Peterborough Distribution Inc.
AB61: PowerStream Inc.
AB62: PUC Distribution Inc.
AB63: Renfrew Hydro Inc.
AB64: Rideau St. Lawrence Distribution Inc.
AB65: St. Thomas Energy Inc.
AB66: Sioux Lookout Hydro Inc.
AB67: Thunder Bay Hydro Electricity Distribution
AB68: Tillsonburg Hydro Inc.
AB69: Toronto Hydro-Electric System Limited
AB70: Veridian Connections Inc.
AB71: Wasaga Distribution Inc.
AB72: Waterloo North Hydro Inc.
AB73: Welland Hydro Electric System Corp.
AB74: Wellington North Power Inc.
AB75: West Coast Huron Energy Inc.
AB76: Westario Power Inc.
AB77: Whitby Hydro Electric Corporation
AB78: Woodstock Hydro Services Inc.
AB81: Alectra Utilities Corporation - PowerStream Rate Zone
AB82: Alectra Utilities Corporation - Brampton Rate Zone
AB83: Alectra Utilities Corporation - Enersource Rate Zone
AB84: Alectra Utilities Corporation - Horizon Rate Zone
AB85: Alectra Utilities Corporation - Guelph Rate Zone

Sheet 2. ICM_Costs
G18: 2018 | K18: Total
B19: Sheet 2: ICM Capital Cost Data | G19: Audited Actual | I19: Forecast
B39: 1 | C39: Capital Costs
E40: Asset Type
C41: ICP 1 System Access | E41: Asset type must be selected to enable calculations | G41: =IF(ISBLANK(G19),"",G19) -> Audited Actual | I41: =IF(ISBLANK(I19),"",I19) -> Forecast
C42: ICP 1.1 | E42: Capital Contributions Paid | G42: 6804600 | K42: =SUM(G42,I42) -> 6804600
C44: ICP 1.2 | K44: =SUM(G44,I44) -> 0
C46: ICP 1.3 | K46: =SUM(G46,I46) -> 0
C48: ICP 1.4 | K48: =SUM(G48,I48) -> 0
C50: ICP 1.5 | K50: =SUM(G50,I50) -> 0
C52: ICP 1.6 | K52: =SUM(G52,I52) -> 0
C54: ICP 1.7 | K54: =SUM(G54,I54) -> 0
C56: ICP 1.8 | K56: =SUM(G56,I56) -> 0
C58: ICP 1.9 | K58: =SUM(G58,I58) -> 0
C60: ICP 1.10 | K60: =SUM(G60,I60) -> 0
C62: Total System Access | G62: =SUM(G42,G44,G46,G48,G50,G52,G54,G56,G58,G60) -> 6804600 | I62: =SUM(I42,I44,I46,I48,I50,I52,I54,I56,I58,I60) -> 0 | K62: =SUM(K42,K44,K46,K48,K50,K52,K54,K56,K58,K60) -> 6804600
E64: =E40 -> Asset Type
C65: ICP 2 SYSTEM RENEWAL - POLE REPLACEMENTS | G65: =G41 -> Audited Actual | I65: =I41 -> Forecast
C66: ICP 2.1. | E66: Poles | K66: =SUM(G66,I66) -> 0
C68: ICP 2.2 | E68: Overhead Conductor | K68: =SUM(G68,I68) -> 0
C70: ICP 2.3 | E70: Underground Conductor | K70: =SUM(G70,I70) -> 0
C72: ICP 2.4 | E72: Overhead Transformers | K72: =SUM(G72,I72) -> 0
C74: ICP 2.5 | E74: Underground Transformers | K74: =SUM(G74,I74) -> 0
C76: ICP 2.6 | E76: Overhead Services | K76: =SUM(G76,I76) -> 0
C78: ICP 2.7 | E78: Underground Conduit | K78: =SUM(G78,I78) -> 0
C80: ICP 2.8 | E80: System Supervisory Equipment | K80: =SUM(G80,I80) -> 0
C82: ICP 2.9 | E82: Distribution Station Equipment - Normally Primary below 50 kV | K82: =SUM(G82,I82) -> 0
C84: ICP 2.10 | E84: Underground Injected Cable | K84: =SUM(G84,I84) -> 0
C86: Total System Renewal - Pole Replacements | G86: =SUM(G66,G68,G70,G72,G74,G76,G78,G80,G82,G84) -> 0 | I86: =SUM(I66,I68,I70,I72,I74,I76,I78,I80,I82,I84) -> 0 | K86: =SUM(K66,K68,K70,K72,K74,K76,K78,K80,K82,K84) -> 0
E88: =E64 -> Asset Type
C89: ICP 3 SYSTEM RENEWAL - STATION REPLACEMENTS | G89: =G65 -> Audited Actual | I89: =I65 -> Forecast
C90: ICP 3.1 | E90: Poles | K90: =SUM(G90,I90) -> 0
C92: ICP 3.2 | E92: Overhead Conductor | K92: =SUM(G92,I92) -> 0
C94: ICP 3.3 | E94: RTU's | K94: =SUM(G94,I94) -> 0
C96: ICP 3.4 | E96: Underground Conductor | K96: =SUM(G96,I96) -> 0
C98: ICP 3.5 | E98: Underground Transformers | K98: =SUM(G98,I98) -> 0
C100: ICP 3.6 | E100: Overhead Services | K100: =SUM(G100,I100) -> 0
C102: ICP 3.7 | E102: System Supervisory Equipment | K102: =SUM(G102,I102) -> 0
C104: ICP 3.8 | E104: Distribution Station Equipment - Normally Primary below 50 kV | K104: =SUM(G104,I104) -> 0
C106: ICP 3.9 | E106: Transformer Station Equipment - Normally Primary above 50 kV | K106: =SUM(G106,I106) -> 0
C108: ICP 3.10 | K108: =SUM(G108,I108) -> 0
C110: Total System Renewal - Station Replacements | I110: =SUM(I90,I92,I94,I96,I98,I100,I102,I104,I106,I108) -> 0 | K110: =SUM(K90,K92,K94,K96,K98,K100,K102,K104,K106,K108) -> 0
E112: =E88 -> Asset Type
C113: ICP 4 SYSTEM RENEWAL - SWITCHGEAR & TRANFORMER REPLACEMENTS | G113: Audited Actual | I113: =I89 -> Forecast
C115: ICP 4.1 | K115: =SUM(G115,I115) -> 0
C117: ICP 4.2 | K117: =SUM(G117,I117) -> 0
C119: ICP 4.3 | K119: =SUM(G119,I119) -> 0
C121: ICP 4.4 | K121: =SUM(G121,I121) -> 0
C123: ICP 4.5 | K123: =SUM(G123,I123) -> 0
C125: ICP 4.6 | K125: =SUM(G125,I125) -> 0
C127: ICP 4.7 | K127: =SUM(G127,I127) -> 0
C129: ICP 4.8 | K129: =SUM(G129,I129) -> 0
C131: ICP 4.9 | K131: =SUM(G131,I131) -> 0
C133: ICP 4.10 | K133: =SUM(G133,I133) -> 0
C135: Total System Renewal - Switchgear & Transformer ReplacementS | I135: =SUM(I115,I117,I119,I121,I123,I125,I127,I129,I131,I133) -> 0 | K135: =SUM(K115,K117,K119,K121,K123,K125,K127,K129,K131,K133) -> 0
E137: =E112 -> Asset Type
C138: ICP 5 SYSTEM CAPACITY RELIEF | G138: Audited Actual | I138: =I113 -> Forecast
C140: ICP 5.1 | K140: =SUM(G140,I140) -> 0
C142: ICP 5.2 | K142: =SUM(G142,I142) -> 0
C144: ICP 5.3 | K144: =SUM(G144,I144) -> 0
C146: ICP 5.4 | K146: =SUM(G146,I146) -> 0
C148: ICP 5.5 | K148: =SUM(G148,I148) -> 0
C150: ICP 5.6 | K150: =SUM(G150,I150) -> 0
C152: ICP 5.7 | K152: =SUM(G152,I152) -> 0
C154: ICP 5.8 | K154: =SUM(G154,I154) -> 0
C156: ICP 5.9 | K156: =SUM(G156,I156) -> 0
C158: ICP 5.10 | K158: =SUM(G158,I158) -> 0
C160: Total System Capacity Relief | I160: =SUM(I140,I142,I144,I146,I148,I150,I152,I154,I156,I158) -> 0 | K160: =SUM(K140,K142,K144,K146,K148,K150,K152,K154,K156,K158) -> 0
C162: Total Capital Costs Related to Incremental Capital Projects (ICP) | I162: =SUM(I62,I86,I110,I135,I160) -> 0 | K162: =SUM(K62,K86,K110,K135,K160) -> 6804600
E164: =E137 -> Asset Type
C165: OTHER CAPITAL COST | G165: Audited Actual | I165: =I138 -> Forecast
C167: A | K167: =SUM(G167,I167) -> 0
C169: B | K169: =SUM(G169,I169) -> 0
C171: C | K171: =SUM(G171,I171) -> 0
C173: Total Other Capital Costs | G173: =SUM(G167,G169,G171) -> 0 | I173: =SUM(I167,I169,I171) -> 0 | K173: =SUM(K167,K169,K171) -> 0
C175: Total ICM Capital Costs | G175: =G162+G173+G135+G110+G86+G62 -> 6804600 | I175: =I162+I173 -> 0 | K175: =K162+K173 -> 6804600
B178: 2 | C178: Aggregated ICM Costs by Category
C180: 2.1 | D180: Capital | E180: Account
C182: 2.1.1 | D182: Poles | E182: ='3. Cost_of_Service_Parameters'!E45 -> 1835 | G182: =SUMIF($E$42:$E$171,$D182,G$42:G$171) -> 0 | I182: =SUMIF($E$42:$E$171,$D182,I$42:I$171) -> 0 | K182: =SUM(G182:J182) -> 0
C184: 2.1.2 | D184: Overhead Conductor | E184: ='3. Cost_of_Service_Parameters'!E47 -> 1830 | G184: =SUMIF($E$42:$E$171,$D184,G$42:G$171) -> 0 | I184: =SUMIF($E$42:$E$171,$D184,I$42:I$171) -> 0 | K184: =SUM(G184:J184) -> 0
C186: 2.1.3 | D186: Underground Conduit | E186: ='3. Cost_of_Service_Parameters'!E49 -> 1830 | G186: =SUMIF($E$42:$E$171,$D186,G$42:G$171) -> 0 | I186: =SUMIF($E$42:$E$171,$D186,I$42:I$171) -> 0 | K186: =SUM(G186:J186) -> 0
C188: 2.1.4 | D188: Underground Conductor | E188: ='3. Cost_of_Service_Parameters'!E51 -> 1850 | G188: =SUMIF($E$42:$E$171,$D188,G$42:G$171) -> 0 | I188: =SUMIF($E$42:$E$171,$D188,I$42:I$171) -> 0 | K188: =SUM(G188:J188) -> 0
C190: 2.1.5 | D190: Underground Injected Cable | E190: ='3. Cost_of_Service_Parameters'!E53 -> 1835 | G190: =SUMIF($E$42:$E$171,$D190,G$42:G$171) -> 0 | I190: =SUMIF($E$42:$E$171,$D190,I$42:I$171) -> 0 | K190: =SUM(G190:J190) -> 0
C192: 2.1.6 | D192: Overhead Transformers | E192: ='3. Cost_of_Service_Parameters'!E55 -> 1855 | G192: =SUMIF($E$42:$E$171,$D192,G$42:G$171) -> 0 | I192: =SUMIF($E$42:$E$171,$D192,I$42:I$171) -> 0 | K192: =SUM(G192:J192) -> 0
C194: 2.1.7 | D194: Underground Transformers | E194: ='3. Cost_of_Service_Parameters'!E57 -> 1850 | G194: =SUMIF($E$42:$E$171,$D194,G$42:G$171) -> 0 | I194: =SUMIF($E$42:$E$171,$D194,I$42:I$171) -> 0 | K194: =SUM(G194:J194) -> 0
C196: 2.1.8 | D196: Overhead Services | E196: ='3. Cost_of_Service_Parameters'!E59 -> 1840 | G196: =SUMIF($E$42:$E$171,$D196,G$42:G$171) -> 0 | I196: =SUMIF($E$42:$E$171,$D196,I$42:I$171) -> 0 | K196: =SUM(G196:J196) -> 0
C198: 2.1.9 | D198: RTU's | E198: ='3. Cost_of_Service_Parameters'!E61 -> 1845 | G198: =SUMIF($E$42:$E$171,$D198,G$42:G$171) -> 0 | I198: =SUMIF($E$42:$E$171,$D198,I$42:I$171) -> 0 | K198: =SUM(G198:J198) -> 0
C200: 2.1.10 | D200: System Supervisory Equipment | E200: 1980 | G200: =SUMIF($E$42:$E$171,$D200,G$42:G$171) -> 0 | I200: =SUMIF($E$42:$E$171,$D200,I$42:I$171) -> 0 | K200: =SUM(G200:J200) -> 0
C202: 2.1.11 | D202: Distribution Station Equipment - Normally Primary below 50 kV | E202: 1820 | G202: =SUMIF($E$42:$E$171,$D202,G$42:G$171) -> 0 | I202: 0 | K202: =SUM(G202:J202) -> 0
C204: 2.1.12 | D204: Transformer Station Equipment - Normally Primary above 50 kV | E204: 1815 | G204: 0 | I204: 0 | K204: =SUM(G204:J204) -> 0
C206: 2.1.13 | D206: Land Rights | E206: 1612 | G206: 0 | I206: 0 | K206: =SUM(G206:J206) -> 0
C208: 2.1.14 | D208: Capital Contributions Paid | E208: 1609 | G208: 6804600 | K208: =SUM(G208:J208) -> 6804600
D211: Total Capital Costs | G211: =SUM(G182:G209) -> 6804600 | I211: =SUM(I182:I209) -> 0 | K211: =SUM(K182:K209) -> 6804600
G212: =IF(G211=G175," ","Error") ->  | I212: =IF(I211=I175,"","Error") ->  | K212: =IF(K211=K175,"","Error") -> 

Sheet 3. Cost_of_Service_Parameters
B17: Sheet 3: Parameters and Rates
G19: 2018 | I19: 2019 | K19: 2020 | M19: 2021 | O19: 2022 | Q19: 2023 | S19: 2024 | U19: 2025 | W19: 2026
B20: Cost of Capital
C21: Capital Structure
D22: Deemed Short-term Debt Capitalization | G22: 0.04 | I22: 0.04 | K22: 0.04 | M22: 0.04 | O22: 0.04 | Q22: 0.04 | S22: 0.04 | U22: 0.04 | W22: 0.04
D23: Deemed Long-term Debt Capitalization | G23: =60%-G22 -> 0.56 | I23: =60%-I22 -> 0.56 | K23: =60%-K22 -> 0.56 | M23: =60%-M22 -> 0.56 | O23: =60%-O22 -> 0.56 | Q23: =60%-Q22 -> 0.56 | S23: =60%-S22 -> 0.56 | U23: =60%-U22 -> 0.56 | W23: =60%-W22 -> 0.56
D24: Deemed Equity Capitalization | G24: =100%-G23-G25-G22 -> 0.4 | I24: =100%-I23-I25-I22 -> 0.4 | K24: =100%-K23-K25-K22 -> 0.4 | M24: =100%-M23-M25-M22 -> 0.4 | O24: =100%-O23-O25-O22 -> 0.4 | Q24: =100%-Q23-Q25-Q22 -> 0.4 | S24: =100%-S23-S25-S22 -> 0.4 | U24: =100%-U23-U25-U22 -> 0.4 | W24: =100%-W23-W25-W22 -> 0.4
D25: Preferred Shares
C26: Total | G26: =SUM(G22:G25) -> 1 | I26: =SUM(I22:I25) -> 1 | K26: =SUM(K22:K25) -> 1 | M26: =SUM(M22:M25) -> 1 | O26: =SUM(O22:O25) -> 1 | Q26: =SUM(Q22:Q25) -> 1 | S26: =SUM(S22:S25) -> 1 | U26: =SUM(U22:U25) -> 1 | W26: =SUM(W22:W25) -> 1
C28: Cost of Capital Parameters
D29: Deemed Short-term Debt Rate | G29: 0.0216 | I29: 0.0216 | K29: 0.0216 | M29: 0.0216 | O29: 0.0216 | Q29: 0.0216 | S29: 0.0216 | U29: 0.0216 | W29: 0.0216
D30: Long-term Debt Rate (actual/embedded/deemed)1 | G30: 0.0607 | I30: 0.0607 | K30: 0.0607 | M30: 0.0607 | O30: 0.0607 | Q30: 0.0607 | S30: 0.0607 | U30: 0.0607 | W30: 0.0607
D31: Target Return on Equity (ROE) | G31: 0.093 | I31: 0.093 | K31: 0.093 | M31: 0.093 | O31: 0.093 | Q31: 0.093 | S31: 0.093 | U31: 0.093 | W31: 0.093
D32: Return on Preferred Shares
C33: WACC | G33: =SUMPRODUCT(G22:G25,G29:G32) -> 0.072056 | I33: =SUMPRODUCT(I22:I25,I29:I32) -> 0.072056 | K33: =SUMPRODUCT(K22:K25,K29:K32) -> 0.072056 | M33: =SUMPRODUCT(M22:M25,M29:M32) -> 0.072056 | O33: =SUMPRODUCT(O22:O25,O29:O32) -> 0.072056 | Q33: =SUMPRODUCT(Q22:Q25,Q29:Q32) -> 0.072056 | S33: =SUMPRODUCT(S22:S25,S29:S32) -> 0.072056 | U33: =SUMPRODUCT(U22:U25,U29:U32) -> 0.072056 | W33: =SUMPRODUCT(W22:W25,W29:W32) -> 0.072056
B35: Working Capital Allowance
C36: Working Capital Allowance Rate | G36: 0.13 | I36: 0.13 | K36: 0.13 | M36: 0.13 | O36: 0.13 | Q36: 0.13 | S36: 0.13 | U36: 0.13 | W36: 0.13
C37: (% of the sum of Cost of Power + controllable expenses)
B39: Taxes/PILs
C40: Aggregate Corporate Income Tax Rate | G40: 0.265 | I40: 0.265 | K40: 0.265 | M40: 0.265 | O40: 0.265 | Q40: 0.265 | S40: 0.265 | U40: 0.265 | W40: 0.265
C41: Capital Tax (until July 1st, 2010) | G41: 0 | I41: 0 | K41: 0 | M41: 0 | O41: 0 | Q41: 0 | S41: 0 | U41: 0 | W41: 0
B43: Depreciation Rates | E43: Account
B44: (expressed as expected useful life in years)
C45: OH Swtch & Cpctrs | E45: 1835 | G45: 30 | I45: 38 | K45: 38 | M45: 38 | O45: 38 | Q45: 38 | S45: 38 | U45: 35 | W45: 35
C46: - rate (%) | G46: =IF(G45=0,0,1/G45) -> 0.03333333333 | I46: =IF(I45=0,0,1/I45) -> 0.02631578947 | K46: 0.02631578947 | M46: 0.02631578947 | O46: 0.02631578947 | Q46: 0.02631578947 | S46: 0.02631578947 | U46: 0.02857142857 | W46: 0.02857142857
C47: Concrete Poles | E47: 1830 | G47: 50 | I47: 51 | K47: 51 | M47: 51 | O47: 51 | Q47: 51 | S47: 51 | U47: 60 | W47: 60
C48: - rate (%) | G48: =IF(G47=0,0,1/G47) -> 0.02 | I48: =IF(I47=0,0,1/I47) -> 0.01960784314 | K48: =IF(K47=0,0,1/K47) -> 0.01960784314 | M48: =IF(M47=0,0,1/M47) -> 0.01960784314 | O48: =IF(O47=0,0,1/O47) -> 0.01960784314 | Q48: =IF(Q47=0,0,1/Q47) -> 0.01960784314 | S48: =IF(S47=0,0,1/S47) -> 0.01960784314 | U48: =IF(U47=0,0,1/U47) -> 0.01666666667 | W48: =IF(W47=0,0,1/W47) -> 0.01666666667
C49: Wood Poles | E49: 1830 | G49: 45 | I49: 44 | K49: 44 | M49: 44 | O49: 44 | Q49: 44 | S49: 44 | U49: 45 | W49: 45
C50: - rate (%) | G50: =IF(G49=0,0,1/G49) -> 0.02222222222 | I50: =IF(I49=0,0,1/I49) -> 0.02272727273 | K50: =IF(K49=0,0,1/K49) -> 0.02272727273 | M50: =IF(M49=0,0,1/M49) -> 0.02272727273 | O50: =IF(O49=0,0,1/O49) -> 0.02272727273 | Q50: =IF(Q49=0,0,1/Q49) -> 0.02272727273 | S50: =IF(S49=0,0,1/S49) -> 0.02272727273 | U50: =IF(U49=0,0,1/U49) -> 0.02222222222 | W50: =IF(W49=0,0,1/W49) -> 0.02222222222
C51: OH Transformers | E51: 1850 | G51: 40 | I51: 41 | K51: 41 | M51: 41 | O51: 41 | Q51: 41 | S51: 41 | U51: 45 | W51: 45
C52: - rate (%) | G52: =IF(G51=0,0,1/G51) -> 0.025 | I52: =IF(I51=0,0,1/I51) -> 0.0243902439 | K52: =IF(K51=0,0,1/K51) -> 0.0243902439 | M52: =IF(M51=0,0,1/M51) -> 0.0243902439 | O52: =IF(O51=0,0,1/O51) -> 0.0243902439 | Q52: =IF(Q51=0,0,1/Q51) -> 0.0243902439 | S52: =IF(S51=0,0,1/S51) -> 0.0243902439 | U52: =IF(U51=0,0,1/U51) -> 0.02222222222 | W52: =IF(W51=0,0,1/W51) -> 0.02222222222
C53: OH Prim Cond & Dev | E53: 1835 | G53: 50 | I53: 45 | K53: 45 | M53: 45 | O53: 45 | Q53: 45 | S53: 45 | U53: 50 | W53: 50
C54: - rate (%) | G54: =IF(G53=0,0,1/G53) -> 0.02 | I54: =IF(I53=0,0,1/I53) -> 0.02222222222 | K54: =IF(K53=0,0,1/K53) -> 0.02222222222 | M54: =IF(M53=0,0,1/M53) -> 0.02222222222 | O54: =IF(O53=0,0,1/O53) -> 0.02222222222 | Q54: =IF(Q53=0,0,1/Q53) -> 0.02222222222 | S54: =IF(S53=0,0,1/S53) -> 0.02222222222 | U54: =IF(U53=0,0,1/U53) -> 0.02 | W54: =IF(W53=0,0,1/W53) -> 0.02
C55: OH Sec Cond & Dev | E55: 1855 | G55: 50 | I55: 48 | K55: 48 | M55: 48 | O55: 48 | Q55: 48 | S55: 48 | U55: 50 | W55: 50
C56: - rate (%) | G56: =IF(G55=0,0,1/G55) -> 0.02 | I56: =IF(I55=0,0,1/I55) -> 0.02083333333 | K56: =IF(K55=0,0,1/K55) -> 0.02083333333 | M56: =IF(M55=0,0,1/M55) -> 0.02083333333 | O56: =IF(O55=0,0,1/O55) -> 0.02083333333 | Q56: =IF(Q55=0,0,1/Q55) -> 0.02083333333 | S56: =IF(S55=0,0,1/S55) -> 0.02083333333 | U56: =IF(U55=0,0,1/U55) -> 0.02 | W56: =IF(W55=0,0,1/W55) -> 0.02
C57: UG Transformers | E57: 1850 | G57: 40 | I57: 32 | K57: 32 | M57: 32 | O57: 32 | Q57: 32 | S57: 32 | U57: 30 | W57: 30
C58: - rate (%) | G58: =IF(G57=0,0,1/G57) -> 0.025 | I58: =IF(I57=0,0,1/I57) -> 0.03125 | K58: =IF(K57=0,0,1/K57) -> 0.03125 | M58: =IF(M57=0,0,1/M57) -> 0.03125 | O58: =IF(O57=0,0,1/O57) -> 0.03125 | Q58: =IF(Q57=0,0,1/Q57) -> 0.03125 | S58: =IF(S57=0,0,1/S57) -> 0.03125 | U58: =IF(U57=0,0,1/U57) -> 0.03333333333 | W58: =IF(W57=0,0,1/W57) -> 0.03333333333
C59: UG Conduit | E59: 1840 | G59: 50 | I59: 52 | K59: 52 | M59: 52 | O59: 52 | Q59: 52 | S59: 52 | U59: 60 | W59: 60
C60: - rate (%) | G60: =IF(G59=0,0,1/G59) -> 0.02 | I60: =IF(I59=0,0,1/I59) -> 0.01923076923 | K60: =IF(K59=0,0,1/K59) -> 0.01923076923 | M60: =IF(M59=0,0,1/M59) -> 0.01923076923 | O60: =IF(O59=0,0,1/O59) -> 0.01923076923 | Q60: =IF(Q59=0,0,1/Q59) -> 0.01923076923 | S60: =IF(S59=0,0,1/S59) -> 0.01923076923 | U60: =IF(U59=0,0,1/U59) -> 0.01666666667 | W60: =IF(W59=0,0,1/W59) -> 0.01666666667
C61: UG Prim XLPE TR | E61: 1845 | G61: 35 | I61: 38 | K61: 38 | M61: 38 | O61: 38 | Q61: 38 | S61: 38 | U61: 45 | W61: 45
C62: - rate (%) | G62: 0.02857142857 | I62: =IF(I61=0,0,1/I61) -> 0.02631578947 | K62: =IF(K61=0,0,1/K61) -> 0.02631578947 | M62: =IF(M61=0,0,1/M61) -> 0.02631578947 | O62: =IF(O61=0,0,1/O61) -> 0.02631578947 | Q62: =IF(Q61=0,0,1/Q61) -> 0.02631578947 | S62: =IF(S61=0,0,1/S61) -> 0.02631578947 | U62: =IF(U61=0,0,1/U61) -> 0.02222222222 | W62: =IF(W61=0,0,1/W61) -> 0.02222222222
C63: UG Sec - Dir Buried | E63: 1845 | G63: 50 | I63: 31 | K63: 31 | M63: 31 | O63: 31 | Q63: 31 | S63: 31 | U63: 30 | W63: 30
C64: - rate (%) | G64: 0.02 | I64: =IF(I63=0,0,1/I63) -> 0.03225806452 | K64: =IF(K63=0,0,1/K63) -> 0.03225806452 | M64: =IF(M63=0,0,1/M63) -> 0.03225806452 | O64: =IF(O63=0,0,1/O63) -> 0.03225806452 | Q64: =IF(Q63=0,0,1/Q63) -> 0.03225806452 | S64: =IF(S63=0,0,1/S63) -> 0.03225806452 | U64: =IF(U63=0,0,1/U63) -> 0.03333333333 | W64: =IF(W63=0,0,1/W63) -> 0.03333333333
C65: UG Sec In Duct/Svs | E65: 1845 | G65: 50 | I65: 37 | K65: 37 | M65: 37 | O65: 37 | Q65: 37 | S65: 37 | U65: 40 | W65: 40
C66: - rate (%) | G66: 0.02 | I66: =IF(I65=0,0,1/I65) -> 0.02702702703 | K66: =IF(K65=0,0,1/K65) -> 0.02702702703 | M66: =IF(M65=0,0,1/M65) -> 0.02702702703 | O66: =IF(O65=0,0,1/O65) -> 0.02702702703 | Q66: =IF(Q65=0,0,1/Q65) -> 0.02702702703 | S66: =IF(S65=0,0,1/S65) -> 0.02702702703 | U66: =IF(U65=0,0,1/U65) -> 0.025 | W66: =IF(W65=0,0,1/W65) -> 0.025
C67: Air Insulated Switchgear | E67: 1845 | G67: 20 | I67: 39 | K67: 39 | M67: 39 | O67: 39 | Q67: 39 | S67: 39 | U67: 35 | W67: 35
C68: - rate (%) | G68: 0.05 | I68: =IF(I67=0,0,1/I67) -> 0.02564102564 | K68: =IF(K67=0,0,1/K67) -> 0.02564102564 | M68: =IF(M67=0,0,1/M67) -> 0.02564102564 | O68: =IF(O67=0,0,1/O67) -> 0.02564102564 | Q68: =IF(Q67=0,0,1/Q67) -> 0.02564102564 | S68: =IF(S67=0,0,1/S67) -> 0.02564102564 | U68: =IF(U67=0,0,1/U67) -> 0.02857142857 | W68: =IF(W67=0,0,1/W67) -> 0.02857142857
C69: Solid Dielectric Switchgear | E69: 1845 | G69: 35 | I69: 42 | K69: 42 | M69: 42 | O69: 42 | Q69: 42 | S69: 42 | U69: 45 | W69: 45
C70: - rate (%) | G70: =IF(G69=0,0,1/G69) -> 0.02857142857 | I70: =IF(I69=0,0,1/I69) -> 0.02380952381 | K70: =IF(K69=0,0,1/K69) -> 0.02380952381 | M70: =IF(M69=0,0,1/M69) -> 0.02380952381 | O70: =IF(O69=0,0,1/O69) -> 0.02380952381 | Q70: =IF(Q69=0,0,1/Q69) -> 0.02380952381 | S70: =IF(S69=0,0,1/S69) -> 0.02380952381 | U70: =IF(U69=0,0,1/U69) -> 0.02222222222 | W70: =IF(W69=0,0,1/W69) -> 0.02222222222
C71: UG Cable Injection | E71: 1845 | G71: 35 | I71: 24 | K71: 24 | M71: 24 | O71: 24 | Q71: 24 | S71: 24 | U71: 20 | W71: 20
C72: - rate (%) | G72: 0.02857142857 | I72: =IF(I71=0,0,1/I71) -> 0.04166666667 | K72: =IF(K71=0,0,1/K71) -> 0.04166666667 | M72: =IF(M71=0,0,1/M71) -> 0.04166666667 | O72: =IF(O71=0,0,1/O71) -> 0.04166666667 | Q72: =IF(Q71=0,0,1/Q71) -> 0.04166666667 | S72: =IF(S71=0,0,1/S71) -> 0.04166666667 | U72: =IF(U71=0,0,1/U71) -> 0.05 | W72: =IF(W71=0,0,1/W71) -> 0.05
C73: MS Integrated P&C Systems | E73: 1820 | G73: 20 | I73: 36 | K73: 36 | M73: 36 | O73: 36 | Q73: 36 | S73: 36 | U73: 15 | W73: 15
C74: - rate (%) | G74: 0.05 | I74: =IF(I73=0,0,1/I73) -> 0.02777777778 | K74: =IF(K73=0,0,1/K73) -> 0.02777777778 | M74: =IF(M73=0,0,1/M73) -> 0.02777777778 | O74: =IF(O73=0,0,1/O73) -> 0.02777777778 | Q74: =IF(Q73=0,0,1/Q73) -> 0.02777777778 | S74: =IF(S73=0,0,1/S73) -> 0.02777777778 | U74: =IF(U73=0,0,1/U73) -> 0.06666666667 | W74: =IF(W73=0,0,1/W73) -> 0.06666666667
C75: MS Building Improvements | E75: 1820 | G75: 60 | I75: 21 | K75: 21 | M75: 21 | O75: 21 | Q75: 21 | S75: 21 | U75: 25 | W75: 25
C76: - rate (%) | G76: 0.01666666667 | I76: =IF(I75=0,0,1/I75) -> 0.04761904762 | K76: =IF(K75=0,0,1/K75) -> 0.04761904762 | M76: =IF(M75=0,0,1/M75) -> 0.04761904762 | O76: =IF(O75=0,0,1/O75) -> 0.04761904762 | Q76: =IF(Q75=0,0,1/Q75) -> 0.04761904762 | S76: =IF(S75=0,0,1/S75) -> 0.04761904762 | U76: =IF(U75=0,0,1/U75) -> 0.04 | W76: =IF(W75=0,0,1/W75) -> 0.04
C77: Capital Contributions Paid | E77: 1609 | G77: 40 | I77: 40 | K77: 40 | M77: 40 | O77: 40 | Q77: 40 | S77: 40 | U77: 40 | W77: 40
C78: - rate (%) | G78: 0.025 | I78: =IF(I77=0,0,1/I77) -> 0.025 | K78: =IF(K77=0,0,1/K77) -> 0.025 | M78: =IF(M77=0,0,1/M77) -> 0.025 | O78: =IF(O77=0,0,1/O77) -> 0.025 | Q78: =IF(Q77=0,0,1/Q77) -> 0.025 | S78: =IF(S77=0,0,1/S77) -> 0.025 | U78: =IF(U77=0,0,1/U77) -> 0.025 | W78: =IF(W77=0,0,1/W77) -> 0.025
B82: CCA Rates
C83: OH Swtch & Cpctrs - CCA Class | G83: 47 | I83: 47 | K83: 47 | M83: 47 | O83: 47 | Q83: 47 | S83: 47 | U83: 47 | W83: 47
C84: OH Swtch & Cpctrs - CCA Rate | G84: 0.08 | I84: 0.08 | K84: 0.08 | M84: 0.08 | O84: 0.08 | Q84: 0.08 | S84: 0.08 | U84: 0.08 | W84: 0.08
C86: Concrete Poles - CCA Class | G86: 47 | I86: 47 | K86: 47 | M86: 47 | O86: 47 | Q86: 47 | S86: 47 | U86: 47 | W86: 47
C87: Concrete Poles - CCA Rate | G87: 0.08 | I87: 0.08 | K87: 0.08 | M87: 0.08 | O87: 0.08 | Q87: 0.08 | S87: 0.08 | U87: 0.08 | W87: 0.08
C89: Wood Poles - CCA Class | G89: 47 | I89: 47 | K89: 47 | M89: 47 | O89: 47 | Q89: 47 | S89: 47 | U89: 47 | W89: 47
C90: Wood Poles - CCA Rate | G90: 0.08 | I90: 0.08 | K90: 0.08 | M90: 0.08 | O90: 0.08 | Q90: 0.08 | S90: 0.08 | U90: 0.08 | W90: 0.08
C92: OH Transformers - CCA Class | G92: 47 | I92: 47 | K92: 47 | M92: 47 | O92: 47 | Q92: 47 | S92: 47 | U92: 47 | W92: 47
C93: OH Transformers - CCA Rate | G93: 0.08 | I93: 0.08 | K93: 0.08 | M93: 0.08 | O93: 0.08 | Q93: 0.08 | S93: 0.08 | U93: 0.08 | W93: 0.08
C95: OH Prim Cond & Dev - CCA Class | G95: 47 | I95: 47 | K95: 47 | M95: 47 | O95: 47 | Q95: 47 | S95: 47 | U95: 47 | W95: 47
C96: OH Prim Cond & Dev - CCA Rate | G96: 0.08 | I96: 0.08 | K96: 0.08 | M96: 0.08 | O96: 0.08 | Q96: 0.08 | S96: 0.08 | U96: 0.08 | W96: 0.08
C98: OH Sec Cond & Dev - CCA Class | G98: 47 | I98: 47 | K98: 47 | M98: 47 | O98: 47 | Q98: 47 | S98: 47 | U98: 47 | W98: 47
C99: OH Sec Cond & Dev - CCA Rate | G99: 0.08 | I99: 0.08 | K99: 0.08 | M99: 0.08 | O99: 0.08 | Q99: 0.08 | S99: 0.08 | U99: 0.08 | W99: 0.08
C101: UG Transformers - CCA Class | G101: 47 | I101: 47 | K101: 47 | M101: 47 | O101: 47 | Q101: 47 | S101: 47 | U101: 47 | W101: 47
C102: UG Transformers - CCA Rate | G102: 0.08 | I102: 0.08 | K102: 0.08 | M102: 0.08 | O102: 0.08 | Q102: 0.08 | S102: 0.08 | U102: 0.08 | W102: 0.08
C104: OH Services - CCA Class | G104: 47 | I104: 47 | K104: 47 | M104: 47 | O104: 47 | Q104: 47 | S104: 47 | U104: 47 | W104: 47
C105: OH Services - CCA Rate | G105: 0.08 | I105: 0.08 | K105: 0.08 | M105: 0.08 | O105: 0.08 | Q105: 0.08 | S105: 0.08 | U105: 0.08 | W105: 0.08
C107: UG Conduit - CCA Class | G107: 47 | I107: 8 | K107: 8 | M107: 8 | O107: 8 | Q107: 8 | S107: 8 | U107: 8 | W107: 8
C108: UG Conduit - CCA Rate | G108: 0.08 | I108: 0.2 | K108: 0.2 | M108: 0.2 | O108: 0.2 | Q108: 0.2 | S108: 0.2 | U108: 0.2 | W108: 0.2
C110: UG Prim XLPE TR - CCA Class | G110: 47 | I110: 8 | K110: 8 | M110: 8 | O110: 8 | Q110: 8 | S110: 8 | U110: 8 | W110: 8
C111: UG Prim XLPE TR - CCA Rate | G111: 0.08 | I111: 0.2 | K111: 0.2 | M111: 0.2 | O111: 0.2 | Q111: 0.2 | S111: 0.2 | U111: 0.2 | W111: 0.2
C113: UG Sec - Dir Buried - CCA Class | G113: 47 | I113: 47 | K113: 47 | M113: 47 | O113: 47 | Q113: 47 | S113: 47 | U113: 47 | W113: 47
C114: UG Sec - Dir Buried - CCA Rate | G114: 0.08 | I114: 0.08 | K114: 0.08 | M114: 0.08 | O114: 0.08 | Q114: 0.08 | S114: 0.08 | U114: 0.08 | W114: 0.08
C116: UG Sec In Duct/Svs - CCA Class | G116: 47 | I116: 47 | K116: 47 | M116: 47 | O116: 47 | Q116: 47 | S116: 47 | U116: 47 | W116: 47
C117: UG Sec In Duct/Svs - CCA Rate | G117: 0.08 | I117: 0.08 | K117: 0.08 | M117: 0.08 | O117: 0.08 | Q117: 0.08 | S117: 0.08 | U117: 0.08 | W117: 0.08
C119: Air Insulated Switchgear - CCA Class | G119: 47 | I119: 47 | K119: 47 | M119: 47 | O119: 47 | Q119: 47 | S119: 47 | U119: 47 | W119: 47
C120: Air Insulated Switchgear - CCA Rate | G120: 0.08 | I120: 0.08 | K120: 0.08 | M120: 0.08 | O120: 0.08 | Q120: 0.08 | S120: 0.08 | U120: 0.08 | W120: 0.08
C122: Solid Dielectric Switchgear - CCA Class | G122: 47 | I122: 47 | K122: 47 | M122: 47 | O122: 47 | Q122: 47 | S122: 47 | U122: 47 | W122: 47
C123: Solid Dielectric Switchgear - CCA Rate | G123: 0.08 | I123: 0.08 | K123: 0.08 | M123: 0.08 | O123: 0.08 | Q123: 0.08 | S123: 0.08 | U123: 0.08 | W123: 0.08
C125: UG Cable Injection - CCA Class | G125: 47 | I125: 47 | K125: 47 | M125: 47 | O125: 47 | Q125: 47 | S125: 47 | U125: 47 | W125: 47
C126: UG Cable Injection - CCA Rate | G126: 0.08 | I126: 0.08 | K126: 0.08 | M126: 0.08 | O126: 0.08 | Q126: 0.08 | S126: 0.08 | U126: 0.08 | W126: 0.08
C128: MS Integrated P&C Systems - CCA Class | G128: 47 | I128: 47 | K128: 47 | M128: 47 | O128: 47 | Q128: 47 | S128: 47 | U128: 47 | W128: 47
C129: MS Integrated P&C Systems - CCA Rate | G129: 0.08 | I129: 0.08 | K129: 0.08 | M129: 0.08 | O129: 0.08 | Q129: 0.08 | S129: 0.08 | U129: 0.08 | W129: 0.08
C131: MS Building Improvements - CCA Class | G131: 1 | I131: 1 | K131: 1 | M131: 1 | O131: 1 | Q131: 1 | S131: 1 | U131: 1 | W131: 1
C132: MS Building Improvements - CCA Rate | G132: 0.04 | I132: 0.04 | K132: 0.04 | M132: 0.04 | O132: 0.04 | Q132: 0.04 | S132: 0.04 | U132: 0.04 | W132: 0.04
C134: Capital Contributions Paid - CCA Class | G134: 47 | I134: 47 | K134: 47 | M134: 47 | O134: 47 | Q134: 47 | S134: 47 | U134: 47 | W134: 47
C135: Capital Contributions Paid - CCA Rate | G135: 0.08 | I135: 0.08 | K135: 0.08 | M135: 0.08 | O135: 0.08 | Q135: 0.08 | S135: 0.08 | U135: 0.08 | W135: 0.08
B138: Assumptions
B139: 1 | C139: Fiscal calendar year (January 1 to December 31) used.
B140: 3 | C140: Amortization is done on a striaght line basis and no "half-year" rule applied.

Sheet 4. ICM_Assets_and_Rate_Base
B17: Sheet 4: ICM Assets - Net Book Value
I18: ='3. Cost_of_Service_Parameters'!G19 -> 2018 | K18: 2019 | M18: 2020 | O18: 2021 | Q18: 2022 | S18: 2023 | U18: 2024 | W18: 2025 | Y18: 2026
B19: Net Fixed Assets - CCR&A contributions
C21: Gross Book Value
D22: Opening Balance | K22: =I25 -> 6804600 | M22: =K25 -> 6804600 | O22: =M25 -> 6804600 | Q22: =O25 -> 6804600 | S22: =Q25 -> 6804600 | U22: =S25 -> 6804600 | W22: =U25 -> 6804600 | Y22: =W25 -> 6804600
D23: Capital Additions during year (from ICM Costs) | I23: ='2. ICM_Costs'!G208 -> 6804600 | K23: ='2. ICM_Costs'!I182 -> 0 | M23: ='2. ICM_Costs'!K182 -> 0 | O23: ='2. ICM_Costs'!M182 -> 0 | Q23: ='2. ICM_Costs'!O182 -> 0 | S23: ='2. ICM_Costs'!Q182 -> 0 | U23: ='2. ICM_Costs'!S182 -> 0 | W23: ='2. ICM_Costs'!U182 -> 0 | Y23: ='2. ICM_Costs'!W182 -> 0
D24: Retirements/Removals (if applicable)
D25: Closing Balance | I25: =I22+I23-I24 -> 6804600 | K25: =K22+K23-K24 -> 6804600 | M25: =M22+M23-M24 -> 6804600 | O25: =O22+O23-O24 -> 6804600 | Q25: =Q22+Q23-Q24 -> 6804600 | S25: =S22+S23-S24 -> 6804600 | U25: =U22+U23-U24 -> 6804600 | W25: =W22+W23-W24 -> 6804600 | Y25: =Y22+Y23-Y24 -> 6804600
C27: Accumulated Depreciation
D28: Opening Balance | K28: =I31 -> -170115 | M28: =K31 -> -340230 | O28: =M31 -> -510345 | Q28: =O31 -> -680460 | S28: =Q31 -> -850575 | U28: =S31 -> -1020690 | W28: =U31 -> -1190805 | Y28: =W31 -> -1360920
D29: Amortization expense during year | I29: =IF(ISERROR(-(I23/('3. Cost_of_Service_Parameters'!G77)+MIN((I22/'3. Cost_of_Service_Parameters'!G77),(I22+I28)))), 0, -(I23/('3. Cost_of_Service_Parameters'!G77)+MIN((I22/'3. Cost_of_Service_Parameters'!G77),(I22+I28)))) -> -170115 | K29: =IF(ISERROR(-(K23/('3. Cost_of_Service_Parameters'!I77)+MIN((K22/'3. Cost_of_Service_Parameters'!I77),(K22+K28)))), 0, -(K23/('3. Cost_of_Service_Parameters'!I77)+MIN((K22/'3. Cost_of_Service_Parameters'!I77),(K22+K28)))) -> -170115 | M29: =IF(ISERROR(-(M23/('3. Cost_of_Service_Parameters'!K77)+MIN((M22/'3. Cost_of_Service_Parameters'!K77),(M22+M28)))), 0, -(M23/('3. Cost_of_Service_Parameters'!K77)+MIN((M22/'3. Cost_of_Service_Parameters'!K77),(M22+M28)))) -> -170115 | O29: =IF(ISERROR(-(O23/('3. Cost_of_Service_Parameters'!M77)+MIN((O22/'3. Cost_of_Service_Parameters'!M77),(O22+O28)))), 0, -(O23/('3. Cost_of_Service_Parameters'!M77)+MIN((O22/'3. Cost_of_Service_Parameters'!M77),(O22+O28)))) -> -170115 | Q29: =IF(ISERROR(-(Q23/('3. Cost_of_Service_Parameters'!O77)+MIN((Q22/'3. Cost_of_Service_Parameters'!O77),(Q22+Q28)))), 0, -(Q23/('3. Cost_of_Service_Parameters'!O77)+MIN((Q22/'3. Cost_of_Service_Parameters'!O77),(Q22+Q28)))) -> -170115 | S29: =IF(ISERROR(-(S23/('3. Cost_of_Service_Parameters'!Q77)+MIN((S22/'3. Cost_of_Service_Parameters'!Q77),(S22+S28)))), 0, -(S23/('3. Cost_of_Service_Parameters'!Q77)+MIN((S22/'3. Cost_of_Service_Parameters'!Q77),(S22+S28)))) -> -170115 | U29: =IF(ISERROR(-(U23/('3. Cost_of_Service_Parameters'!S77)+MIN((U22/'3. Cost_of_Service_Parameters'!S77),(U22+U28)))), 0, -(U23/('3. Cost_of_Service_Parameters'!S77)+MIN((U22/'3. Cost_of_Service_Parameters'!S77),(U22+U28)))) -> -170115 | W29: =IF(ISERROR(-(W23/('3. Cost_of_Service_Parameters'!U77)+MIN((W22/'3. Cost_of_Service_Parameters'!U77),(W22+W28)))), 0, -(W23/('3. Cost_of_Service_Parameters'!U77)+MIN((W22/'3. Cost_of_Service_Parameters'!U77),(W22+W28)))) -> -170115 | Y29: =IF(ISERROR(-(Y23/('3. Cost_of_Service_Parameters'!W77)+MIN((Y22/'3. Cost_of_Service_Parameters'!W77),(Y22+Y28)))), 0, -(Y23/('3. Cost_of_Service_Parameters'!W77)+MIN((Y22/'3. Cost_of_Service_Parameters'!W77),(Y22+Y28)))) -> -170115
D30: Retirements/Removals (if applicable)
D31: Closing Balance | I31: =I28+I29-I30 -> -170115 | K31: =K28+K29-K30 -> -340230 | M31: =M28+M29-M30 -> -510345 | O31: =O28+O29-O30 -> -680460 | Q31: =Q28+Q29-Q30 -> -850575 | S31: =S28+S29-S30 -> -1020690 | U31: =U28+U29-U30 -> -1190805 | W31: =W28+W29-W30 -> -1360920 | Y31: =Y28+Y29-Y30 -> -1531035
C33: Net Book Value
D34: Opening Balance | I34: =I22+I28 -> 0 | K34: =I35 -> 6634485 | M34: =K35 -> 6464370 | O34: =M35 -> 6294255 | Q34: =O35 -> 6124140 | S34: =Q35 -> 5954025 | U34: =S35 -> 5783910 | W34: =U35 -> 5613795 | Y34: =W35 -> 5443680
D35: Closing Balance | I35: =I25+I31 -> 6634485 | K35: =K25+K31 -> 6464370 | M35: =M25+M31 -> 6294255 | O35: =O25+O31 -> 6124140 | Q35: =Q25+Q31 -> 5954025 | S35: =S25+S31 -> 5783910 | U35: =U25+U31 -> 5613795 | W35: =W25+W31 -> 5443680 | Y35: =Y25+Y31 -> 5273565
D36: Incremental CAPEX | I36: =I35 -> 6634485 | K36: =AVERAGE(K34:K35) -> 6549427.5 | M36: =AVERAGE(M34:M35) -> 6379312.5 | O36: =AVERAGE(O34:O35) -> 6209197.5 | Q36: =AVERAGE(Q34:Q35) -> 6039082.5 | S36: =AVERAGE(S34:S35) -> 5868967.5 | U36: =AVERAGE(U34:U35) -> 5698852.5 | W36: =AVERAGE(W34:W35) -> 5528737.5 | Y36: =AVERAGE(Y34:Y35) -> 5358622.5
B38: Net Fixed Assets - Overhead Conductor
C40: Gross Book Value
D41: Opening Balance | K41: =I44 -> 0 | M41: =K44 -> 0 | O41: =M44 -> 0 | Q41: =O44 -> 0 | S41: =Q44 -> 0 | U41: =S44 -> 0 | W41: =U44 -> 0 | Y41: =W44 -> 0
D42: Capital Additions during year (from ICM Costs) | I42: ='2. ICM_Costs'!G184 -> 0 | K42: ='2. ICM_Costs'!I184 -> 0 | M42: ='2. ICM_Costs'!K184 -> 0 | O42: ='2. ICM_Costs'!M184 -> 0 | Q42: ='2. ICM_Costs'!O184 -> 0 | S42: ='2. ICM_Costs'!Q184 -> 0 | U42: ='2. ICM_Costs'!S184 -> 0 | W42: ='2. ICM_Costs'!U184 -> 0 | Y42: ='2. ICM_Costs'!W184 -> 0
D43: Retirements/Removals (if applicable)
D44: Closing Balance | I44: =I41+I42-I43 -> 0 | K44: =K41+K42-K43 -> 0 | M44: =M41+M42-M43 -> 0 | O44: =O41+O42-O43 -> 0 | Q44: =Q41+Q42-Q43 -> 0 | S44: =S41+S42-S43 -> 0 | U44: =U41+U42-U43 -> 0 | W44: =W41+W42-W43 -> 0 | Y44: =Y41+Y42-Y43 -> 0
C46: Accumulated Depreciation
D47: Opening Balance | K47: =I50 -> 0 | M47: =K50 -> 0 | O47: =M50 -> 0 | Q47: =O50 -> 0 | S47: =Q50 -> 0 | U47: =S50 -> 0 | W47: =U50 -> 0 | Y47: =W50 -> 0
D48: Amortization expense during year | I48: =IF(ISERROR(-(I42/('3. Cost_of_Service_Parameters'!G47)+MIN((I41/'3. Cost_of_Service_Parameters'!G47),(I41+I47)))), 0, -(I42/('3. Cost_of_Service_Parameters'!G47)+MIN((I41/'3. Cost_of_Service_Parameters'!G47),(I41+I47)))) -> 0 | K48: =IF(ISERROR(-(K42/('3. Cost_of_Service_Parameters'!I47*2)+MIN((K41/'3. Cost_of_Service_Parameters'!I47),(K41+K47)))), 0, -(K42/('3. Cost_of_Service_Parameters'!I47*2)+MIN((K41/'3. Cost_of_Service_Parameters'!I47),(K41+K47)))) -> 0 | M48: =IF(ISERROR(-(M42/('3. Cost_of_Service_Parameters'!K47*2)+MIN((M41/'3. Cost_of_Service_Parameters'!K47),(M41+M47)))), 0, -(M42/('3. Cost_of_Service_Parameters'!K47*2)+MIN((M41/'3. Cost_of_Service_Parameters'!K47),(M41+M47)))) -> 0 | O48: =IF(ISERROR(-(O42/('3. Cost_of_Service_Parameters'!M47*2)+MIN((O41/'3. Cost_of_Service_Parameters'!M47),(O41+O47)))), 0, -(O42/('3. Cost_of_Service_Parameters'!M47*2)+MIN((O41/'3. Cost_of_Service_Parameters'!M47),(O41+O47)))) -> 0 | Q48: =IF(ISERROR(-(Q42/('3. Cost_of_Service_Parameters'!O47*2)+MIN((Q41/'3. Cost_of_Service_Parameters'!O47),(Q41+Q47)))), 0, -(Q42/('3. Cost_of_Service_Parameters'!O47*2)+MIN((Q41/'3. Cost_of_Service_Parameters'!O47),(Q41+Q47)))) -> 0 | S48: =IF(ISERROR(-(S42/('3. Cost_of_Service_Parameters'!Q47*2)+MIN((S41/'3. Cost_of_Service_Parameters'!Q47),(S41+S47)))), 0, -(S42/('3. Cost_of_Service_Parameters'!Q47*2)+MIN((S41/'3. Cost_of_Service_Parameters'!Q47),(S41+S47)))) -> 0 | U48: =IF(ISERROR(-(U42/('3. Cost_of_Service_Parameters'!S47*2)+MIN((U41/'3. Cost_of_Service_Parameters'!S47),(U41+U47)))), 0, -(U42/('3. Cost_of_Service_Parameters'!S47*2)+MIN((U41/'3. Cost_of_Service_Parameters'!S47),(U41+U47)))) -> 0 | W48: =IF(ISERROR(-(W42/('3. Cost_of_Service_Parameters'!U47*2)+MIN((W41/'3. Cost_of_Service_Parameters'!U47),(W41+W47)))), 0, -(W42/('3. Cost_of_Service_Parameters'!U47*2)+MIN((W41/'3. Cost_of_Service_Parameters'!U47),(W41+W47)))) -> 0 | Y48: =IF(ISERROR(-(Y42/('3. Cost_of_Service_Parameters'!W47*2)+MIN((Y41/'3. Cost_of_Service_Parameters'!W47),(Y41+Y47)))), 0, -(Y42/('3. Cost_of_Service_Parameters'!W47*2)+MIN((Y41/'3. Cost_of_Service_Parameters'!W47),(Y41+Y47)))) -> 0
D49: Retirements/Removals (if applicable)
D50: Closing Balance | I50: =I47+I48-I49 -> 0 | K50: =K47+K48-K49 -> 0 | M50: =M47+M48-M49 -> 0 | O50: =O47+O48-O49 -> 0 | Q50: =Q47+Q48-Q49 -> 0 | S50: =S47+S48-S49 -> 0 | U50: =U47+U48-U49 -> 0 | W50: =W47+W48-W49 -> 0 | Y50: =Y47+Y48-Y49 -> 0
C52: Net Book Value
D53: Opening Balance | I53: =I41+I47 -> 0 | K53: =I54 -> 0 | M53: =K54 -> 0 | O53: =M54 -> 0 | Q53: =O54 -> 0 | S53: =Q54 -> 0 | U53: =S54 -> 0 | W53: =U54 -> 0 | Y53: =W54 -> 0
D54: Closing Balance | I54: =I44+I50 -> 0 | K54: =K44+K50 -> 0 | M54: =M44+M50 -> 0 | O54: =O44+O50 -> 0 | Q54: =Q44+Q50 -> 0 | S54: =S44+S50 -> 0 | U54: =U44+U50 -> 0 | W54: =W44+W50 -> 0 | Y54: =Y44+Y50 -> 0
D55: Incremental CAPEX | I55: =I54 -> 0 | K55: =AVERAGE(K53:K54) -> 0 | M55: =AVERAGE(M53:M54) -> 0 | O55: =AVERAGE(O53:O54) -> 0 | Q55: =AVERAGE(Q53:Q54) -> 0 | S55: =AVERAGE(S53:S54) -> 0 | U55: =AVERAGE(U53:U54) -> 0 | W55: =AVERAGE(W53:W54) -> 0 | Y55: =AVERAGE(Y53:Y54) -> 0
B57: Net Fixed Assets - Underground Conduit
C59: Gross Book Value
D60: Opening Balance | K60: =I63 -> 0 | M60: =K63 -> 0 | O60: =M63 -> 0 | Q60: =O63 -> 0 | S60: =Q63 -> 0 | U60: =S63 -> 0 | W60: =U63 -> 0 | Y60: =W63 -> 0
D61: Capital Additions during year (from ICM Costs) | I61: ='2. ICM_Costs'!G186 -> 0 | K61: ='2. ICM_Costs'!I186 -> 0 | M61: ='2. ICM_Costs'!K186 -> 0 | O61: ='2. ICM_Costs'!M186 -> 0 | Q61: ='2. ICM_Costs'!O186 -> 0 | S61: ='2. ICM_Costs'!Q186 -> 0 | U61: ='2. ICM_Costs'!S186 -> 0 | W61: ='2. ICM_Costs'!U186 -> 0 | Y61: ='2. ICM_Costs'!W186 -> 0
D62: Retirements/Removals (if applicable)
D63: Closing Balance | I63: =I60+I61-I62 -> 0 | K63: =K60+K61-K62 -> 0 | M63: =M60+M61-M62 -> 0 | O63: =O60+O61-O62 -> 0 | Q63: =Q60+Q61-Q62 -> 0 | S63: =S60+S61-S62 -> 0 | U63: =U60+U61-U62 -> 0 | W63: =W60+W61-W62 -> 0 | Y63: =Y60+Y61-Y62 -> 0
C65: Accumulated Depreciation
D66: Opening Balance | K66: =I69 -> 0 | M66: =K69 -> 0 | O66: =M69 -> 0 | Q66: =O69 -> 0 | S66: =Q69 -> 0 | U66: =S69 -> 0 | W66: =U69 -> 0 | Y66: =W69 -> 0
D67: Amortization expense during year | I67: =IF(ISERROR(-(I61/('3. Cost_of_Service_Parameters'!G49)+MIN((I60/'3. Cost_of_Service_Parameters'!G49),(I60+I66)))), 0, -(I61/('3. Cost_of_Service_Parameters'!G49)+MIN((I60/'3. Cost_of_Service_Parameters'!G49),(I60+I66)))) -> 0 | K67: =IF(ISERROR(-(K61/('3. Cost_of_Service_Parameters'!I49*2)+MIN((K60/'3. Cost_of_Service_Parameters'!I49),(K60+K66)))), 0, -(K61/('3. Cost_of_Service_Parameters'!I49*2)+MIN((K60/'3. Cost_of_Service_Parameters'!I49),(K60+K66)))) -> 0 | M67: =IF(ISERROR(-(M61/('3. Cost_of_Service_Parameters'!K49*2)+MIN((M60/'3. Cost_of_Service_Parameters'!K49),(M60+M66)))), 0, -(M61/('3. Cost_of_Service_Parameters'!K49*2)+MIN((M60/'3. Cost_of_Service_Parameters'!K49),(M60+M66)))) -> 0 | O67: =IF(ISERROR(-(O61/('3. Cost_of_Service_Parameters'!M49*2)+MIN((O60/'3. Cost_of_Service_Parameters'!M49),(O60+O66)))), 0, -(O61/('3. Cost_of_Service_Parameters'!M49*2)+MIN((O60/'3. Cost_of_Service_Parameters'!M49),(O60+O66)))) -> 0 | Q67: =IF(ISERROR(-(Q61/('3. Cost_of_Service_Parameters'!O49*2)+MIN((Q60/'3. Cost_of_Service_Parameters'!O49),(Q60+Q66)))), 0, -(Q61/('3. Cost_of_Service_Parameters'!O49*2)+MIN((Q60/'3. Cost_of_Service_Parameters'!O49),(Q60+Q66)))) -> 0 | S67: =IF(ISERROR(-(S61/('3. Cost_of_Service_Parameters'!Q49*2)+MIN((S60/'3. Cost_of_Service_Parameters'!Q49),(S60+S66)))), 0, -(S61/('3. Cost_of_Service_Parameters'!Q49*2)+MIN((S60/'3. Cost_of_Service_Parameters'!Q49),(S60+S66)))) -> 0 | U67: =IF(ISERROR(-(U61/('3. Cost_of_Service_Parameters'!S49*2)+MIN((U60/'3. Cost_of_Service_Parameters'!S49),(U60+U66)))), 0, -(U61/('3. Cost_of_Service_Parameters'!S49*2)+MIN((U60/'3. Cost_of_Service_Parameters'!S49),(U60+U66)))) -> 0 | W67: =IF(ISERROR(-(W61/('3. Cost_of_Service_Parameters'!U49*2)+MIN((W60/'3. Cost_of_Service_Parameters'!U49),(W60+W66)))), 0, -(W61/('3. Cost_of_Service_Parameters'!U49*2)+MIN((W60/'3. Cost_of_Service_Parameters'!U49),(W60+W66)))) -> 0 | Y67: =IF(ISERROR(-(Y61/('3. Cost_of_Service_Parameters'!W49*2)+MIN((Y60/'3. Cost_of_Service_Parameters'!W49),(Y60+Y66)))), 0, -(Y61/('3. Cost_of_Service_Parameters'!W49*2)+MIN((Y60/'3. Cost_of_Service_Parameters'!W49),(Y60+Y66)))) -> 0
D68: Retirements/Removals (if applicable)
D69: Closing Balance | I69: =I66+I67-I68 -> 0 | K69: =K66+K67-K68 -> 0 | M69: =M66+M67-M68 -> 0 | O69: =O66+O67-O68 -> 0 | Q69: =Q66+Q67-Q68 -> 0 | S69: =S66+S67-S68 -> 0 | U69: =U66+U67-U68 -> 0 | W69: =W66+W67-W68 -> 0 | Y69: =Y66+Y67-Y68 -> 0
C71: Net Book Value
D72: Opening Balance | I72: =I60+I66 -> 0 | K72: =I73 -> 0 | M72: =K73 -> 0 | O72: =M73 -> 0 | Q72: =O73 -> 0 | S72: =Q73 -> 0 | U72: =S73 -> 0 | W72: =U73 -> 0 | Y72: =W73 -> 0
D73: Closing Balance | I73: =I63+I69 -> 0 | K73: =K63+K69 -> 0 | M73: =M63+M69 -> 0 | O73: =O63+O69 -> 0 | Q73: =Q63+Q69 -> 0 | S73: =S63+S69 -> 0 | U73: =U63+U69 -> 0 | W73: =W63+W69 -> 0 | Y73: =Y63+Y69 -> 0
D74: Incremental CAPEX | I74: =I73 -> 0 | K74: =AVERAGE(K72:K73) -> 0 | M74: =AVERAGE(M72:M73) -> 0 | O74: =AVERAGE(O72:O73) -> 0 | Q74: =AVERAGE(Q72:Q73) -> 0 | S74: =AVERAGE(S72:S73) -> 0 | U74: =AVERAGE(U72:U73) -> 0 | W74: =AVERAGE(W72:W73) -> 0 | Y74: =AVERAGE(Y72:Y73) -> 0
B76: Net Fixed Assets - Underground Conductor
C78: Gross Book Value
D79: Opening Balance | K79: =I82 -> 0 | M79: =K82 -> 0 | O79: =M82 -> 0 | Q79: =O82 -> 0 | S79: =Q82 -> 0 | U79: =S82 -> 0 | W79: =U82 -> 0 | Y79: =W82 -> 0
D80: Capital Additions during year (from ICM Costs) | I80: ='2. ICM_Costs'!G188 -> 0 | K80: ='2. ICM_Costs'!I188 -> 0 | M80: ='2. ICM_Costs'!K188 -> 0 | O80: ='2. ICM_Costs'!M188 -> 0 | Q80: ='2. ICM_Costs'!O188 -> 0 | S80: ='2. ICM_Costs'!Q188 -> 0 | U80: ='2. ICM_Costs'!S188 -> 0 | W80: ='2. ICM_Costs'!U188 -> 0 | Y80: ='2. ICM_Costs'!W188 -> 0
D81: Retirements/Removals (if applicable)
D82: Closing Balance | I82: =I79+I80-I81 -> 0 | K82: =K79+K80-K81 -> 0 | M82: =M79+M80-M81 -> 0 | O82: =O79+O80-O81 -> 0 | Q82: =Q79+Q80-Q81 -> 0 | S82: =S79+S80-S81 -> 0 | U82: =U79+U80-U81 -> 0 | W82: =W79+W80-W81 -> 0 | Y82: =Y79+Y80-Y81 -> 0
C84: Accumulated Depreciation
D85: Opening Balance | K85: =I88 -> 0 | M85: =K88 -> 0 | O85: =M88 -> 0 | Q85: =O88 -> 0 | S85: =Q88 -> 0 | U85: =S88 -> 0 | W85: =U88 -> 0 | Y85: =W88 -> 0
D86: Amortization expense during year | I86: =IF(ISERROR(-(I80/('3. Cost_of_Service_Parameters'!G51)+MIN((I79/'3. Cost_of_Service_Parameters'!G51),(I79+I85)))), 0, -(I80/('3. Cost_of_Service_Parameters'!G51)+MIN((I79/'3. Cost_of_Service_Parameters'!G51),(I79+I85)))) -> 0 | K86: =IF(ISERROR(-(K80/('3. Cost_of_Service_Parameters'!I51*2)+MIN((K79/'3. Cost_of_Service_Parameters'!I51),(K79+K85)))), 0, -(K80/('3. Cost_of_Service_Parameters'!I51*2)+MIN((K79/'3. Cost_of_Service_Parameters'!I51),(K79+K85)))) -> 0 | M86: =IF(ISERROR(-(M80/('3. Cost_of_Service_Parameters'!K51*2)+MIN((M79/'3. Cost_of_Service_Parameters'!K51),(M79+M85)))), 0, -(M80/('3. Cost_of_Service_Parameters'!K51*2)+MIN((M79/'3. Cost_of_Service_Parameters'!K51),(M79+M85)))) -> 0 | O86: =IF(ISERROR(-(O80/('3. Cost_of_Service_Parameters'!M51*2)+MIN((O79/'3. Cost_of_Service_Parameters'!M51),(O79+O85)))), 0, -(O80/('3. Cost_of_Service_Parameters'!M51*2)+MIN((O79/'3. Cost_of_Service_Parameters'!M51),(O79+O85)))) -> 0 | Q86: =IF(ISERROR(-(Q80/('3. Cost_of_Service_Parameters'!O51*2)+MIN((Q79/'3. Cost_of_Service_Parameters'!O51),(Q79+Q85)))), 0, -(Q80/('3. Cost_of_Service_Parameters'!O51*2)+MIN((Q79/'3. Cost_of_Service_Parameters'!O51),(Q79+Q85)))) -> 0 | S86: =IF(ISERROR(-(S80/('3. Cost_of_Service_Parameters'!Q51*2)+MIN((S79/'3. Cost_of_Service_Parameters'!Q51),(S79+S85)))), 0, -(S80/('3. Cost_of_Service_Parameters'!Q51*2)+MIN((S79/'3. Cost_of_Service_Parameters'!Q51),(S79+S85)))) -> 0 | U86: =IF(ISERROR(-(U80/('3. Cost_of_Service_Parameters'!S51*2)+MIN((U79/'3. Cost_of_Service_Parameters'!S51),(U79+U85)))), 0, -(U80/('3. Cost_of_Service_Parameters'!S51*2)+MIN((U79/'3. Cost_of_Service_Parameters'!S51),(U79+U85)))) -> 0 | W86: =IF(ISERROR(-(W80/('3. Cost_of_Service_Parameters'!U51*2)+MIN((W79/'3. Cost_of_Service_Parameters'!U51),(W79+W85)))), 0, -(W80/('3. Cost_of_Service_Parameters'!U51*2)+MIN((W79/'3. Cost_of_Service_Parameters'!U51),(W79+W85)))) -> 0 | Y86: =IF(ISERROR(-(Y80/('3. Cost_of_Service_Parameters'!W51*2)+MIN((Y79/'3. Cost_of_Service_Parameters'!W51),(Y79+Y85)))), 0, -(Y80/('3. Cost_of_Service_Parameters'!W51*2)+MIN((Y79/'3. Cost_of_Service_Parameters'!W51),(Y79+Y85)))) -> 0
D87: Retirements/Removals (if applicable)
D88: Closing Balance | I88: =I85+I86-I87 -> 0 | K88: =K85+K86-K87 -> 0 | M88: =M85+M86-M87 -> 0 | O88: =O85+O86-O87 -> 0 | Q88: =Q85+Q86-Q87 -> 0 | S88: =S85+S86-S87 -> 0 | U88: =U85+U86-U87 -> 0 | W88: =W85+W86-W87 -> 0 | Y88: =Y85+Y86-Y87 -> 0
C90: Net Book Value
D91: Opening Balance | I91: =I79+I85 -> 0 | K91: =I92 -> 0 | M91: =K92 -> 0 | O91: =M92 -> 0 | Q91: =O92 -> 0 | S91: =Q92 -> 0 | U91: =S92 -> 0 | W91: =U92 -> 0 | Y91: =W92 -> 0
D92: Closing Balance | I92: =I82+I88 -> 0 | K92: =K82+K88 -> 0 | M92: =M82+M88 -> 0 | O92: =O82+O88 -> 0 | Q92: =Q82+Q88 -> 0 | S92: =S82+S88 -> 0 | U92: =U82+U88 -> 0 | W92: =W82+W88 -> 0 | Y92: =Y82+Y88 -> 0
D93: Incremental CAPEX | I93: =I92 -> 0 | K93: =AVERAGE(K91:K92) -> 0 | M93: =AVERAGE(M91:M92) -> 0 | O93: =AVERAGE(O91:O92) -> 0 | Q93: =AVERAGE(Q91:Q92) -> 0 | S93: =AVERAGE(S91:S92) -> 0 | U93: =AVERAGE(U91:U92) -> 0 | W93: =AVERAGE(W91:W92) -> 0 | Y93: =AVERAGE(Y91:Y92) -> 0
B95: Net Fixed Assets - U/G Injected Cable
C97: Gross Book Value
D98: Opening Balance | K98: =I101 -> 0 | M98: =K101 -> 0 | O98: =M101 -> 0 | Q98: =O101 -> 0 | S98: =Q101 -> 0 | U98: =S101 -> 0 | W98: =U101 -> 0 | Y98: =W101 -> 0
D99: Capital Additions during year (from ICM Costs) | I99: ='2. ICM_Costs'!G190 -> 0 | K99: ='2. ICM_Costs'!I190 -> 0 | M99: ='2. ICM_Costs'!K190 -> 0 | O99: ='2. ICM_Costs'!M190 -> 0 | Q99: ='2. ICM_Costs'!O190 -> 0 | S99: ='2. ICM_Costs'!Q190 -> 0 | U99: ='2. ICM_Costs'!S190 -> 0 | W99: ='2. ICM_Costs'!U190 -> 0 | Y99: ='2. ICM_Costs'!W190 -> 0
D100: Retirements/Removals (if applicable)
D101: Closing Balance | I101: =I98+I99-I100 -> 0 | K101: =K98+K99-K100 -> 0 | M101: =M98+M99-M100 -> 0 | O101: =O98+O99-O100 -> 0 | Q101: =Q98+Q99-Q100 -> 0 | S101: =S98+S99-S100 -> 0 | U101: =U98+U99-U100 -> 0 | W101: =W98+W99-W100 -> 0 | Y101: =Y98+Y99-Y100 -> 0
C103: Accumulated Depreciation
D104: Opening Balance | K104: =I107 -> 0 | M104: =K107 -> 0 | O104: =M107 -> 0 | Q104: =O107 -> 0 | S104: =Q107 -> 0 | U104: =S107 -> 0 | W104: =U107 -> 0 | Y104: =W107 -> 0
D105: Amortization expense during year | I105: =IF(ISERROR(-(I99/('3. Cost_of_Service_Parameters'!G53)+MIN((I98/'3. Cost_of_Service_Parameters'!G53),(I98+I104)))), 0, -(I99/('3. Cost_of_Service_Parameters'!G53)+MIN((I98/'3. Cost_of_Service_Parameters'!G53),(I98+I104)))) -> 0 | K105: =IF(ISERROR(-(K99/('3. Cost_of_Service_Parameters'!I53*2)+MIN((K98/'3. Cost_of_Service_Parameters'!I53),(K98+K104)))), 0, -(K99/('3. Cost_of_Service_Parameters'!I53*2)+MIN((K98/'3. Cost_of_Service_Parameters'!I53),(K98+K104)))) -> 0 | M105: =IF(ISERROR(-(M99/('3. Cost_of_Service_Parameters'!K53*2)+MIN((M98/'3. Cost_of_Service_Parameters'!K53),(M98+M104)))), 0, -(M99/('3. Cost_of_Service_Parameters'!K53*2)+MIN((M98/'3. Cost_of_Service_Parameters'!K53),(M98+M104)))) -> 0 | O105: =IF(ISERROR(-(O99/('3. Cost_of_Service_Parameters'!M53*2)+MIN((O98/'3. Cost_of_Service_Parameters'!M53),(O98+O104)))), 0, -(O99/('3. Cost_of_Service_Parameters'!M53*2)+MIN((O98/'3. Cost_of_Service_Parameters'!M53),(O98+O104)))) -> 0 | Q105: =IF(ISERROR(-(Q99/('3. Cost_of_Service_Parameters'!O53*2)+MIN((Q98/'3. Cost_of_Service_Parameters'!O53),(Q98+Q104)))), 0, -(Q99/('3. Cost_of_Service_Parameters'!O53*2)+MIN((Q98/'3. Cost_of_Service_Parameters'!O53),(Q98+Q104)))) -> 0 | S105: =IF(ISERROR(-(S99/('3. Cost_of_Service_Parameters'!Q53*2)+MIN((S98/'3. Cost_of_Service_Parameters'!Q53),(S98+S104)))), 0, -(S99/('3. Cost_of_Service_Parameters'!Q53*2)+MIN((S98/'3. Cost_of_Service_Parameters'!Q53),(S98+S104)))) -> 0 | U105: =IF(ISERROR(-(U99/('3. Cost_of_Service_Parameters'!S53*2)+MIN((U98/'3. Cost_of_Service_Parameters'!S53),(U98+U104)))), 0, -(U99/('3. Cost_of_Service_Parameters'!S53*2)+MIN((U98/'3. Cost_of_Service_Parameters'!S53),(U98+U104)))) -> 0 | W105: =IF(ISERROR(-(W99/('3. Cost_of_Service_Parameters'!U53*2)+MIN((W98/'3. Cost_of_Service_Parameters'!U53),(W98+W104)))), 0, -(W99/('3. Cost_of_Service_Parameters'!U53*2)+MIN((W98/'3. Cost_of_Service_Parameters'!U53),(W98+W104)))) -> 0 | Y105: =IF(ISERROR(-(Y99/('3. Cost_of_Service_Parameters'!W53*2)+MIN((Y98/'3. Cost_of_Service_Parameters'!W53),(Y98+Y104)))), 0, -(Y99/('3. Cost_of_Service_Parameters'!W53*2)+MIN((Y98/'3. Cost_of_Service_Parameters'!W53),(Y98+Y104)))) -> 0
D106: Retirements/Removals (if applicable)
D107: Closing Balance | I107: =I104+I105-I106 -> 0 | K107: =K104+K105-K106 -> 0 | M107: =M104+M105-M106 -> 0 | O107: =O104+O105-O106 -> 0 | Q107: =Q104+Q105-Q106 -> 0 | S107: =S104+S105-S106 -> 0 | U107: =U104+U105-U106 -> 0 | W107: =W104+W105-W106 -> 0 | Y107: =Y104+Y105-Y106 -> 0
C109: Net Book Value
D110: Opening Balance | I110: =I98+I104 -> 0 | K110: =I111 -> 0 | M110: =K111 -> 0 | O110: =M111 -> 0 | Q110: =O111 -> 0 | S110: =Q111 -> 0 | U110: =S111 -> 0 | W110: =U111 -> 0 | Y110: =W111 -> 0
D111: Closing Balance | I111: =I101+I107 -> 0 | K111: =K101+K107 -> 0 | M111: =M101+M107 -> 0 | O111: =O101+O107 -> 0 | Q111: =Q101+Q107 -> 0 | S111: =S101+S107 -> 0 | U111: =U101+U107 -> 0 | W111: =W101+W107 -> 0 | Y111: =Y101+Y107 -> 0
D112: Incremental CAPEX | I112: =I111 -> 0 | K112: =AVERAGE(K110:K111) -> 0 | M112: =AVERAGE(M110:M111) -> 0 | O112: =AVERAGE(O110:O111) -> 0 | Q112: =AVERAGE(Q110:Q111) -> 0 | S112: =AVERAGE(S110:S111) -> 0 | U112: =AVERAGE(U110:U111) -> 0 | W112: =AVERAGE(W110:W111) -> 0 | Y112: =AVERAGE(Y110:Y111) -> 0
B114: Net Fixed Assets - OH Transformers
C116: Gross Book Value
D117: Opening Balance | K117: =I120 -> 0 | M117: =K120 -> 0 | O117: =M120 -> 0 | Q117: =O120 -> 0 | S117: =Q120 -> 0 | U117: =S120 -> 0 | W117: =U120 -> 0 | Y117: =W120 -> 0
D118: Capital Additions during year (from ICM Costs) | I118: ='2. ICM_Costs'!G192 -> 0 | K118: ='2. ICM_Costs'!I192 -> 0 | M118: ='2. ICM_Costs'!K192 -> 0 | O118: ='2. ICM_Costs'!M192 -> 0 | Q118: ='2. ICM_Costs'!O192 -> 0 | S118: ='2. ICM_Costs'!Q192 -> 0 | U118: ='2. ICM_Costs'!S192 -> 0 | W118: ='2. ICM_Costs'!U192 -> 0 | Y118: ='2. ICM_Costs'!W192 -> 0
D119: Retirements/Removals (if applicable)
D120: Closing Balance | I120: =I117+I118-I119 -> 0 | K120: =K117+K118-K119 -> 0 | M120: =M117+M118-M119 -> 0 | O120: =O117+O118-O119 -> 0 | Q120: =Q117+Q118-Q119 -> 0 | S120: =S117+S118-S119 -> 0 | U120: =U117+U118-U119 -> 0 | W120: =W117+W118-W119 -> 0 | Y120: =Y117+Y118-Y119 -> 0
C122: Accumulated Depreciation
D123: Opening Balance | K123: =I126 -> 0 | M123: =K126 -> 0 | O123: =M126 -> 0 | Q123: =O126 -> 0 | S123: =Q126 -> 0 | U123: =S126 -> 0 | W123: =U126 -> 0 | Y123: =W126 -> 0
D124: Amortization expense during year | I124: =IF(ISERROR(-(I118/('3. Cost_of_Service_Parameters'!G55)+MIN((I117/'3. Cost_of_Service_Parameters'!G55),(I117+I123)))), 0, -(I118/('3. Cost_of_Service_Parameters'!G55)+MIN((I117/'3. Cost_of_Service_Parameters'!G55),(I117+I123)))) -> 0 | K124: =IF(ISERROR(-(K118/('3. Cost_of_Service_Parameters'!I55*2)+MIN((K117/'3. Cost_of_Service_Parameters'!I55),(K117+K123)))), 0, -(K118/('3. Cost_of_Service_Parameters'!I55*2)+MIN((K117/'3. Cost_of_Service_Parameters'!I55),(K117+K123)))) -> 0 | M124: =IF(ISERROR(-(M118/('3. Cost_of_Service_Parameters'!K55*2)+MIN((M117/'3. Cost_of_Service_Parameters'!K55),(M117+M123)))), 0, -(M118/('3. Cost_of_Service_Parameters'!K55*2)+MIN((M117/'3. Cost_of_Service_Parameters'!K55),(M117+M123)))) -> 0 | O124: =IF(ISERROR(-(O118/('3. Cost_of_Service_Parameters'!M55*2)+MIN((O117/'3. Cost_of_Service_Parameters'!M55),(O117+O123)))), 0, -(O118/('3. Cost_of_Service_Parameters'!M55*2)+MIN((O117/'3. Cost_of_Service_Parameters'!M55),(O117+O123)))) -> 0 | Q124: =IF(ISERROR(-(Q118/('3. Cost_of_Service_Parameters'!O55*2)+MIN((Q117/'3. Cost_of_Service_Parameters'!O55),(Q117+Q123)))), 0, -(Q118/('3. Cost_of_Service_Parameters'!O55*2)+MIN((Q117/'3. Cost_of_Service_Parameters'!O55),(Q117+Q123)))) -> 0 | S124: =IF(ISERROR(-(S118/('3. Cost_of_Service_Parameters'!Q55*2)+MIN((S117/'3. Cost_of_Service_Parameters'!Q55),(S117+S123)))), 0, -(S118/('3. Cost_of_Service_Parameters'!Q55*2)+MIN((S117/'3. Cost_of_Service_Parameters'!Q55),(S117+S123)))) -> 0 | U124: =IF(ISERROR(-(U118/('3. Cost_of_Service_Parameters'!S55*2)+MIN((U117/'3. Cost_of_Service_Parameters'!S55),(U117+U123)))), 0, -(U118/('3. Cost_of_Service_Parameters'!S55*2)+MIN((U117/'3. Cost_of_Service_Parameters'!S55),(U117+U123)))) -> 0 | W124: =IF(ISERROR(-(W118/('3. Cost_of_Service_Parameters'!U55*2)+MIN((W117/'3. Cost_of_Service_Parameters'!U55),(W117+W123)))), 0, -(W118/('3. Cost_of_Service_Parameters'!U55*2)+MIN((W117/'3. Cost_of_Service_Parameters'!U55),(W117+W123)))) -> 0 | Y124: =IF(ISERROR(-(Y118/('3. Cost_of_Service_Parameters'!W55*2)+MIN((Y117/'3. Cost_of_Service_Parameters'!W55),(Y117+Y123)))), 0, -(Y118/('3. Cost_of_Service_Parameters'!W55*2)+MIN((Y117/'3. Cost_of_Service_Parameters'!W55),(Y117+Y123)))) -> 0
D125: Retirements/Removals (if applicable)
D126: Closing Balance | I126: =I123+I124-I125 -> 0 | K126: =K123+K124-K125 -> 0 | M126: =M123+M124-M125 -> 0 | O126: =O123+O124-O125 -> 0 | Q126: =Q123+Q124-Q125 -> 0 | S126: =S123+S124-S125 -> 0 | U126: =U123+U124-U125 -> 0 | W126: =W123+W124-W125 -> 0 | Y126: =Y123+Y124-Y125 -> 0
C128: Net Book Value
D129: Opening Balance | I129: =I117+I123 -> 0 | K129: =I130 -> 0 | M129: =K130 -> 0 | O129: =M130 -> 0 | Q129: =O130 -> 0 | S129: =Q130 -> 0 | U129: =S130 -> 0 | W129: =U130 -> 0 | Y129: =W130 -> 0
D130: Closing Balance | I130: =I120+I126 -> 0 | K130: =K120+K126 -> 0 | M130: =M120+M126 -> 0 | O130: =O120+O126 -> 0 | Q130: =Q120+Q126 -> 0 | S130: =S120+S126 -> 0 | U130: =U120+U126 -> 0 | W130: =W120+W126 -> 0 | Y130: =Y120+Y126 -> 0
D131: Incremental CAPEX | I131: =I130 -> 0 | K131: =AVERAGE(K129:K130) -> 0 | M131: =AVERAGE(M129:M130) -> 0 | O131: =AVERAGE(O129:O130) -> 0 | Q131: =AVERAGE(Q129:Q130) -> 0 | S131: =AVERAGE(S129:S130) -> 0 | U131: =AVERAGE(U129:U130) -> 0 | W131: =AVERAGE(W129:W130) -> 0 | Y131: =AVERAGE(Y129:Y130) -> 0
B133: Net Fixed Assets - UG Transformers
C135: Gross Book Value
D136: Opening Balance | K136: =I139 -> 0 | M136: =K139 -> 0 | O136: =M139 -> 0 | Q136: =O139 -> 0 | S136: =Q139 -> 0 | U136: =S139 -> 0 | W136: =U139 -> 0 | Y136: =W139 -> 0
D137: Capital Additions during year (from ICM Costs) | I137: ='2. ICM_Costs'!G194 -> 0 | K137: ='2. ICM_Costs'!I194 -> 0 | M137: ='2. ICM_Costs'!K194 -> 0 | O137: ='2. ICM_Costs'!M194 -> 0 | Q137: ='2. ICM_Costs'!O194 -> 0 | S137: ='2. ICM_Costs'!Q194 -> 0 | U137: ='2. ICM_Costs'!S194 -> 0 | W137: ='2. ICM_Costs'!U194 -> 0 | Y137: ='2. ICM_Costs'!W194 -> 0
D138: Retirements/Removals (if applicable)
D139: Closing Balance | I139: =I136+I137-I138 -> 0 | K139: =K136+K137-K138 -> 0 | M139: =M136+M137-M138 -> 0 | O139: =O136+O137-O138 -> 0 | Q139: =Q136+Q137-Q138 -> 0 | S139: =S136+S137-S138 -> 0 | U139: =U136+U137-U138 -> 0 | W139: =W136+W137-W138 -> 0 | Y139: =Y136+Y137-Y138 -> 0
C141: Accumulated Depreciation
D142: Opening Balance | K142: =I145 -> 0 | M142: =K145 -> 0 | O142: =M145 -> 0 | Q142: =O145 -> 0 | S142: =Q145 -> 0 | U142: =S145 -> 0 | W142: =U145 -> 0 | Y142: =W145 -> 0
D143: Amortization expense during year | I143: =IF(ISERROR(-(I137/('3. Cost_of_Service_Parameters'!G57)+MIN((I136/'3. Cost_of_Service_Parameters'!G57),(I136+I142)))), 0, -(I137/('3. Cost_of_Service_Parameters'!G57)+MIN((I136/'3. Cost_of_Service_Parameters'!G57),(I136+I142)))) -> 0 | K143: =IF(ISERROR(-(K137/('3. Cost_of_Service_Parameters'!I57*2)+MIN((K136/'3. Cost_of_Service_Parameters'!I57),(K136+K142)))), 0, -(K137/('3. Cost_of_Service_Parameters'!I57*2)+MIN((K136/'3. Cost_of_Service_Parameters'!I57),(K136+K142)))) -> 0 | M143: =IF(ISERROR(-(M137/('3. Cost_of_Service_Parameters'!K57*2)+MIN((M136/'3. Cost_of_Service_Parameters'!K57),(M136+M142)))), 0, -(M137/('3. Cost_of_Service_Parameters'!K57*2)+MIN((M136/'3. Cost_of_Service_Parameters'!K57),(M136+M142)))) -> 0 | O143: =IF(ISERROR(-(O137/('3. Cost_of_Service_Parameters'!M57*2)+MIN((O136/'3. Cost_of_Service_Parameters'!M57),(O136+O142)))), 0, -(O137/('3. Cost_of_Service_Parameters'!M57*2)+MIN((O136/'3. Cost_of_Service_Parameters'!M57),(O136+O142)))) -> 0 | Q143: =IF(ISERROR(-(Q137/('3. Cost_of_Service_Parameters'!O57*2)+MIN((Q136/'3. Cost_of_Service_Parameters'!O57),(Q136+Q142)))), 0, -(Q137/('3. Cost_of_Service_Parameters'!O57*2)+MIN((Q136/'3. Cost_of_Service_Parameters'!O57),(Q136+Q142)))) -> 0 | S143: =IF(ISERROR(-(S137/('3. Cost_of_Service_Parameters'!Q57*2)+MIN((S136/'3. Cost_of_Service_Parameters'!Q57),(S136+S142)))), 0, -(S137/('3. Cost_of_Service_Parameters'!Q57*2)+MIN((S136/'3. Cost_of_Service_Parameters'!Q57),(S136+S142)))) -> 0 | U143: =IF(ISERROR(-(U137/('3. Cost_of_Service_Parameters'!S57*2)+MIN((U136/'3. Cost_of_Service_Parameters'!S57),(U136+U142)))), 0, -(U137/('3. Cost_of_Service_Parameters'!S57*2)+MIN((U136/'3. Cost_of_Service_Parameters'!S57),(U136+U142)))) -> 0 | W143: =IF(ISERROR(-(W137/('3. Cost_of_Service_Parameters'!U57*2)+MIN((W136/'3. Cost_of_Service_Parameters'!U57),(W136+W142)))), 0, -(W137/('3. Cost_of_Service_Parameters'!U57*2)+MIN((W136/'3. Cost_of_Service_Parameters'!U57),(W136+W142)))) -> 0 | Y143: =IF(ISERROR(-(Y137/('3. Cost_of_Service_Parameters'!W57*2)+MIN((Y136/'3. Cost_of_Service_Parameters'!W57),(Y136+Y142)))), 0, -(Y137/('3. Cost_of_Service_Parameters'!W57*2)+MIN((Y136/'3. Cost_of_Service_Parameters'!W57),(Y136+Y142)))) -> 0
D144: Retirements/Removals (if applicable)
D145: Closing Balance | I145: =I142+I143-I144 -> 0 | K145: =K142+K143-K144 -> 0 | M145: =M142+M143-M144 -> 0 | O145: =O142+O143-O144 -> 0 | Q145: =Q142+Q143-Q144 -> 0 | S145: =S142+S143-S144 -> 0 | U145: =U142+U143-U144 -> 0 | W145: =W142+W143-W144 -> 0 | Y145: =Y142+Y143-Y144 -> 0
C147: Net Book Value
D148: Opening Balance | I148: =I136+I142 -> 0 | K148: =I149 -> 0 | M148: =K149 -> 0 | O148: =M149 -> 0 | Q148: =O149 -> 0 | S148: =Q149 -> 0 | U148: =S149 -> 0 | W148: =U149 -> 0 | Y148: =W149 -> 0
D149: Closing Balance | I149: =I139+I145 -> 0 | K149: =K139+K145 -> 0 | M149: =M139+M145 -> 0 | O149: =O139+O145 -> 0 | Q149: =Q139+Q145 -> 0 | S149: =S139+S145 -> 0 | U149: =U139+U145 -> 0 | W149: =W139+W145 -> 0 | Y149: =Y139+Y145 -> 0
D150: Incremental CAPEX | I150: =I149 -> 0 | K150: =AVERAGE(K148:K149) -> 0 | M150: =AVERAGE(M148:M149) -> 0 | O150: =AVERAGE(O148:O149) -> 0 | Q150: =AVERAGE(Q148:Q149) -> 0 | S150: =AVERAGE(S148:S149) -> 0 | U150: =AVERAGE(U148:U149) -> 0 | W150: =AVERAGE(W148:W149) -> 0 | Y150: =AVERAGE(Y148:Y149) -> 0
B152: Net Fixed Assets - OH Services
C154: Gross Book Value
D155: Opening Balance | K155: =I158 -> 0 | M155: =K158 -> 0 | O155: =M158 -> 0 | Q155: =O158 -> 0 | S155: =Q158 -> 0 | U155: =S158 -> 0 | W155: =U158 -> 0 | Y155: =W158 -> 0
D156: Capital Additions during year (from ICM Costs) | I156: ='2. ICM_Costs'!G196 -> 0 | K156: ='2. ICM_Costs'!I196 -> 0 | M156: ='2. ICM_Costs'!K196 -> 0 | O156: ='2. ICM_Costs'!M196 -> 0 | Q156: ='2. ICM_Costs'!O196 -> 0 | S156: ='2. ICM_Costs'!Q196 -> 0 | U156: ='2. ICM_Costs'!S196 -> 0 | W156: ='2. ICM_Costs'!U196 -> 0 | Y156: ='2. ICM_Costs'!W196 -> 0
D157: Retirements/Removals (if applicable)
D158: Closing Balance | I158: =I155+I156-I157 -> 0 | K158: =K155+K156-K157 -> 0 | M158: =M155+M156-M157 -> 0 | O158: =O155+O156-O157 -> 0 | Q158: =Q155+Q156-Q157 -> 0 | S158: =S155+S156-S157 -> 0 | U158: =U155+U156-U157 -> 0 | W158: =W155+W156-W157 -> 0 | Y158: =Y155+Y156-Y157 -> 0
C160: Accumulated Depreciation
D161: Opening Balance | K161: =I164 -> 0 | M161: =K164 -> 0 | O161: =M164 -> 0 | Q161: =O164 -> 0 | S161: =Q164 -> 0 | U161: =S164 -> 0 | W161: =U164 -> 0 | Y161: =W164 -> 0
D162: Amortization expense during year | I162: =IF(ISERROR(-(I156/('3. Cost_of_Service_Parameters'!G59)+MIN((I155/'3. Cost_of_Service_Parameters'!G59),(I155+I161)))), 0, -(I156/('3. Cost_of_Service_Parameters'!G59)+MIN((I155/'3. Cost_of_Service_Parameters'!G59),(I155+I161)))) -> 0 | K162: =IF(ISERROR(-(K156/('3. Cost_of_Service_Parameters'!I59*2)+MIN((K155/'3. Cost_of_Service_Parameters'!I59),(K155+K161)))), 0, -(K156/('3. Cost_of_Service_Parameters'!I59*2)+MIN((K155/'3. Cost_of_Service_Parameters'!I59),(K155+K161)))) -> 0 | M162: =IF(ISERROR(-(M156/('3. Cost_of_Service_Parameters'!K59*2)+MIN((M155/'3. Cost_of_Service_Parameters'!K59),(M155+M161)))), 0, -(M156/('3. Cost_of_Service_Parameters'!K59*2)+MIN((M155/'3. Cost_of_Service_Parameters'!K59),(M155+M161)))) -> 0 | O162: =IF(ISERROR(-(O156/('3. Cost_of_Service_Parameters'!M59*2)+MIN((O155/'3. Cost_of_Service_Parameters'!M59),(O155+O161)))), 0, -(O156/('3. Cost_of_Service_Parameters'!M59*2)+MIN((O155/'3. Cost_of_Service_Parameters'!M59),(O155+O161)))) -> 0 | Q162: =IF(ISERROR(-(Q156/('3. Cost_of_Service_Parameters'!O59*2)+MIN((Q155/'3. Cost_of_Service_Parameters'!O59),(Q155+Q161)))), 0, -(Q156/('3. Cost_of_Service_Parameters'!O59*2)+MIN((Q155/'3. Cost_of_Service_Parameters'!O59),(Q155+Q161)))) -> 0 | S162: =IF(ISERROR(-(S156/('3. Cost_of_Service_Parameters'!Q59*2)+MIN((S155/'3. Cost_of_Service_Parameters'!Q59),(S155+S161)))), 0, -(S156/('3. Cost_of_Service_Parameters'!Q59*2)+MIN((S155/'3. Cost_of_Service_Parameters'!Q59),(S155+S161)))) -> 0 | U162: =IF(ISERROR(-(U156/('3. Cost_of_Service_Parameters'!S59*2)+MIN((U155/'3. Cost_of_Service_Parameters'!S59),(U155+U161)))), 0, -(U156/('3. Cost_of_Service_Parameters'!S59*2)+MIN((U155/'3. Cost_of_Service_Parameters'!S59),(U155+U161)))) -> 0 | W162: =IF(ISERROR(-(W156/('3. Cost_of_Service_Parameters'!U59*2)+MIN((W155/'3. Cost_of_Service_Parameters'!U59),(W155+W161)))), 0, -(W156/('3. Cost_of_Service_Parameters'!U59*2)+MIN((W155/'3. Cost_of_Service_Parameters'!U59),(W155+W161)))) -> 0 | Y162: =IF(ISERROR(-(Y156/('3. Cost_of_Service_Parameters'!W59*2)+MIN((Y155/'3. Cost_of_Service_Parameters'!W59),(Y155+Y161)))), 0, -(Y156/('3. Cost_of_Service_Parameters'!W59*2)+MIN((Y155/'3. Cost_of_Service_Parameters'!W59),(Y155+Y161)))) -> 0
D163: Retirements/Removals (if applicable)
D164: Closing Balance | I164: =I161+I162-I163 -> 0 | K164: =K161+K162-K163 -> 0 | M164: =M161+M162-M163 -> 0 | O164: =O161+O162-O163 -> 0 | Q164: =Q161+Q162-Q163 -> 0 | S164: =S161+S162-S163 -> 0 | U164: =U161+U162-U163 -> 0 | W164: =W161+W162-W163 -> 0 | Y164: =Y161+Y162-Y163 -> 0
C166: Net Book Value
D167: Opening Balance | I167: =I155+I161 -> 0 | K167: =I168 -> 0 | M167: =K168 -> 0 | O167: =M168 -> 0 | Q167: =O168 -> 0 | S167: =Q168 -> 0 | U167: =S168 -> 0 | W167: =U168 -> 0 | Y167: =W168 -> 0
D168: Closing Balance | I168: =I158+I164 -> 0 | K168: =K158+K164 -> 0 | M168: =M158+M164 -> 0 | O168: =O158+O164 -> 0 | Q168: =Q158+Q164 -> 0 | S168: =S158+S164 -> 0 | U168: =U158+U164 -> 0 | W168: =W158+W164 -> 0 | Y168: =Y158+Y164 -> 0
D169: Incremental CAPEX | I169: =I168 -> 0 | K169: =AVERAGE(K167:K168) -> 0 | M169: =AVERAGE(M167:M168) -> 0 | O169: =AVERAGE(O167:O168) -> 0 | Q169: =AVERAGE(Q167:Q168) -> 0 | S169: =AVERAGE(S167:S168) -> 0 | U169: =AVERAGE(U167:U168) -> 0 | W169: =AVERAGE(W167:W168) -> 0 | Y169: =AVERAGE(Y167:Y168) -> 0
B171: Net Fixed Assets - RTUs
C173: Gross Book Value
D174: Opening Balance | K174: =I177 -> 0 | M174: =K177 -> 0 | O174: =M177 -> 0 | Q174: =O177 -> 0 | S174: =Q177 -> 0 | U174: =S177 -> 0 | W174: =U177 -> 0 | Y174: =W177 -> 0
D175: Capital Additions during year (from ICM Costs) | I175: ='2. ICM_Costs'!G198 -> 0 | K175: ='2. ICM_Costs'!I198 -> 0 | M175: ='2. ICM_Costs'!K198 -> 0 | O175: ='2. ICM_Costs'!M198 -> 0 | Q175: ='2. ICM_Costs'!O198 -> 0 | S175: ='2. ICM_Costs'!Q198 -> 0 | U175: ='2. ICM_Costs'!S198 -> 0 | W175: ='2. ICM_Costs'!U198 -> 0 | Y175: ='2. ICM_Costs'!W198 -> 0
D176: Retirements/Removals (if applicable)
D177: Closing Balance | I177: =I174+I175-I176 -> 0 | K177: =K174+K175-K176 -> 0 | M177: =M174+M175-M176 -> 0 | O177: =O174+O175-O176 -> 0 | Q177: =Q174+Q175-Q176 -> 0 | S177: =S174+S175-S176 -> 0 | U177: =U174+U175-U176 -> 0 | W177: =W174+W175-W176 -> 0 | Y177: =Y174+Y175-Y176 -> 0
C179: Accumulated Depreciation
D180: Opening Balance | K180: =I183 -> 0 | M180: =K183 -> 0 | O180: =M183 -> 0 | Q180: =O183 -> 0 | S180: =Q183 -> 0 | U180: =S183 -> 0 | W180: =U183 -> 0 | Y180: =W183 -> 0
D181: Amortization expense during year | I181: =IF(ISERROR(-(I175/('3. Cost_of_Service_Parameters'!G61)+MIN((I174/'3. Cost_of_Service_Parameters'!G61),(I174+I180)))), 0, -(I175/('3. Cost_of_Service_Parameters'!G61)+MIN((I174/'3. Cost_of_Service_Parameters'!G61),(I174+I180)))) -> 0 | K181: =IF(ISERROR(-(K175/('3. Cost_of_Service_Parameters'!I61*2)+MIN((K174/'3. Cost_of_Service_Parameters'!I61),(K174+K180)))), 0, -(K175/('3. Cost_of_Service_Parameters'!I61*2)+MIN((K174/'3. Cost_of_Service_Parameters'!I61),(K174+K180)))) -> 0 | M181: =IF(ISERROR(-(M175/('3. Cost_of_Service_Parameters'!K61*2)+MIN((M174/'3. Cost_of_Service_Parameters'!K61),(M174+M180)))), 0, -(M175/('3. Cost_of_Service_Parameters'!K61*2)+MIN((M174/'3. Cost_of_Service_Parameters'!K61),(M174+M180)))) -> 0 | O181: =IF(ISERROR(-(O175/('3. Cost_of_Service_Parameters'!M61*2)+MIN((O174/'3. Cost_of_Service_Parameters'!M61),(O174+O180)))), 0, -(O175/('3. Cost_of_Service_Parameters'!M61*2)+MIN((O174/'3. Cost_of_Service_Parameters'!M61),(O174+O180)))) -> 0 | Q181: =IF(ISERROR(-(Q175/('3. Cost_of_Service_Parameters'!O61*2)+MIN((Q174/'3. Cost_of_Service_Parameters'!O61),(Q174+Q180)))), 0, -(Q175/('3. Cost_of_Service_Parameters'!O61*2)+MIN((Q174/'3. Cost_of_Service_Parameters'!O61),(Q174+Q180)))) -> 0 | S181: =IF(ISERROR(-(S175/('3. Cost_of_Service_Parameters'!Q61*2)+MIN((S174/'3. Cost_of_Service_Parameters'!Q61),(S174+S180)))), 0, -(S175/('3. Cost_of_Service_Parameters'!Q61*2)+MIN((S174/'3. Cost_of_Service_Parameters'!Q61),(S174+S180)))) -> 0 | U181: =IF(ISERROR(-(U175/('3. Cost_of_Service_Parameters'!S61*2)+MIN((U174/'3. Cost_of_Service_Parameters'!S61),(U174+U180)))), 0, -(U175/('3. Cost_of_Service_Parameters'!S61*2)+MIN((U174/'3. Cost_of_Service_Parameters'!S61),(U174+U180)))) -> 0 | W181: =IF(ISERROR(-(W175/('3. Cost_of_Service_Parameters'!U61*2)+MIN((W174/'3. Cost_of_Service_Parameters'!U61),(W174+W180)))), 0, -(W175/('3. Cost_of_Service_Parameters'!U61*2)+MIN((W174/'3. Cost_of_Service_Parameters'!U61),(W174+W180)))) -> 0 | Y181: =IF(ISERROR(-(Y175/('3. Cost_of_Service_Parameters'!W61*2)+MIN((Y174/'3. Cost_of_Service_Parameters'!W61),(Y174+Y180)))), 0, -(Y175/('3. Cost_of_Service_Parameters'!W61*2)+MIN((Y174/'3. Cost_of_Service_Parameters'!W61),(Y174+Y180)))) -> 0
D182: Retirements/Removals (if applicable)
D183: Closing Balance | I183: =I180+I181-I182 -> 0 | K183: =K180+K181-K182 -> 0 | M183: =M180+M181-M182 -> 0 | O183: =O180+O181-O182 -> 0 | Q183: =Q180+Q181-Q182 -> 0 | S183: =S180+S181-S182 -> 0 | U183: =U180+U181-U182 -> 0 | W183: =W180+W181-W182 -> 0 | Y183: =Y180+Y181-Y182 -> 0
C185: Net Book Value
D186: Opening Balance | I186: =I174+I180 -> 0 | K186: =I187 -> 0 | M186: =K187 -> 0 | O186: =M187 -> 0 | Q186: =O187 -> 0 | S186: =Q187 -> 0 | U186: =S187 -> 0 | W186: =U187 -> 0 | Y186: =W187 -> 0
D187: Closing Balance | I187: =I177+I183 -> 0 | K187: =K177+K183 -> 0 | M187: =M177+M183 -> 0 | O187: =O177+O183 -> 0 | Q187: =Q177+Q183 -> 0 | S187: =S177+S183 -> 0 | U187: =U177+U183 -> 0 | W187: =W177+W183 -> 0 | Y187: =Y177+Y183 -> 0
D188: Incremental CAPEX | I188: =I187 -> 0 | K188: =AVERAGE(K186:K187) -> 0 | M188: =AVERAGE(M186:M187) -> 0 | O188: =AVERAGE(O186:O187) -> 0 | Q188: =AVERAGE(Q186:Q187) -> 0 | S188: =AVERAGE(S186:S187) -> 0 | U188: =AVERAGE(U186:U187) -> 0 | W188: =AVERAGE(W186:W187) -> 0 | Y188: =AVERAGE(Y186:Y187) -> 0
B191: Net Fixed Assets - System Supervisory Equipment
C193: Gross Book Value
D194: Opening Balance | K194: =I197 -> 0 | M194: =K197 -> 0 | O194: =M197 -> 0 | Q194: =O197 -> 0 | S194: =Q197 -> 0 | U194: =S197 -> 0 | W194: =U197 -> 0 | Y194: =W197 -> 0
D195: Capital Additions during year (from ICM Costs) | I195: ='2. ICM_Costs'!G200 -> 0 | K195: ='2. ICM_Costs'!I218 -> 0 | M195: ='2. ICM_Costs'!K218 -> 0 | O195: ='2. ICM_Costs'!M218 -> 0 | Q195: ='2. ICM_Costs'!O218 -> 0 | S195: ='2. ICM_Costs'!Q218 -> 0 | U195: ='2. ICM_Costs'!S218 -> 0 | W195: ='2. ICM_Costs'!U218 -> 0 | Y195: ='2. ICM_Costs'!W218 -> 0
D196: Retirements/Removals (if applicable)
D197: Closing Balance | I197: =I194+I195-I196 -> 0 | K197: =K194+K195-K196 -> 0 | M197: =M194+M195-M196 -> 0 | O197: =O194+O195-O196 -> 0 | Q197: =Q194+Q195-Q196 -> 0 | S197: =S194+S195-S196 -> 0 | U197: =U194+U195-U196 -> 0 | W197: =W194+W195-W196 -> 0 | Y197: =Y194+Y195-Y196 -> 0
C199: Accumulated Depreciation
D200: Opening Balance | K200: =I203 -> 0 | M200: =K203 -> 0 | O200: =M203 -> 0 | Q200: =O203 -> 0 | S200: =Q203 -> 0 | U200: =S203 -> 0 | W200: =U203 -> 0 | Y200: =W203 -> 0
D201: Amortization expense during year | I201: =IF(ISERROR(-(I195/('3. Cost_of_Service_Parameters'!G63)+MIN((I194/'3. Cost_of_Service_Parameters'!G63),(I194+I200)))), 0, -(I195/('3. Cost_of_Service_Parameters'!G63)+MIN((I194/'3. Cost_of_Service_Parameters'!G63),(I194+I200)))) -> 0 | K201: =IF(ISERROR(-(K195/('3. Cost_of_Service_Parameters'!I63*2)+MIN((K194/'3. Cost_of_Service_Parameters'!I63),(K194+K200)))), 0, -(K195/('3. Cost_of_Service_Parameters'!I63*2)+MIN((K194/'3. Cost_of_Service_Parameters'!I63),(K194+K200)))) -> 0 | M201: =IF(ISERROR(-(M195/('3. Cost_of_Service_Parameters'!K63*2)+MIN((M194/'3. Cost_of_Service_Parameters'!K63),(M194+M200)))), 0, -(M195/('3. Cost_of_Service_Parameters'!K63*2)+MIN((M194/'3. Cost_of_Service_Parameters'!K63),(M194+M200)))) -> 0 | O201: =IF(ISERROR(-(O195/('3. Cost_of_Service_Parameters'!M63*2)+MIN((O194/'3. Cost_of_Service_Parameters'!M63),(O194+O200)))), 0, -(O195/('3. Cost_of_Service_Parameters'!M63*2)+MIN((O194/'3. Cost_of_Service_Parameters'!M63),(O194+O200)))) -> 0 | Q201: =IF(ISERROR(-(Q195/('3. Cost_of_Service_Parameters'!O63*2)+MIN((Q194/'3. Cost_of_Service_Parameters'!O63),(Q194+Q200)))), 0, -(Q195/('3. Cost_of_Service_Parameters'!O63*2)+MIN((Q194/'3. Cost_of_Service_Parameters'!O63),(Q194+Q200)))) -> 0 | S201: =IF(ISERROR(-(S195/('3. Cost_of_Service_Parameters'!Q63*2)+MIN((S194/'3. Cost_of_Service_Parameters'!Q63),(S194+S200)))), 0, -(S195/('3. Cost_of_Service_Parameters'!Q63*2)+MIN((S194/'3. Cost_of_Service_Parameters'!Q63),(S194+S200)))) -> 0 | U201: =IF(ISERROR(-(U195/('3. Cost_of_Service_Parameters'!S63*2)+MIN((U194/'3. Cost_of_Service_Parameters'!S63),(U194+U200)))), 0, -(U195/('3. Cost_of_Service_Parameters'!S63*2)+MIN((U194/'3. Cost_of_Service_Parameters'!S63),(U194+U200)))) -> 0 | W201: =IF(ISERROR(-(W195/('3. Cost_of_Service_Parameters'!U63*2)+MIN((W194/'3. Cost_of_Service_Parameters'!U63),(W194+W200)))), 0, -(W195/('3. Cost_of_Service_Parameters'!U63*2)+MIN((W194/'3. Cost_of_Service_Parameters'!U63),(W194+W200)))) -> 0 | Y201: =IF(ISERROR(-(Y195/('3. Cost_of_Service_Parameters'!W63*2)+MIN((Y194/'3. Cost_of_Service_Parameters'!W63),(Y194+Y200)))), 0, -(Y195/('3. Cost_of_Service_Parameters'!W63*2)+MIN((Y194/'3. Cost_of_Service_Parameters'!W63),(Y194+Y200)))) -> 0
D202: Retirements/Removals (if applicable)
D203: Closing Balance | I203: =I200+I201-I202 -> 0 | K203: =K200+K201-K202 -> 0 | M203: =M200+M201-M202 -> 0 | O203: =O200+O201-O202 -> 0 | Q203: =Q200+Q201-Q202 -> 0 | S203: =S200+S201-S202 -> 0 | U203: =U200+U201-U202 -> 0 | W203: =W200+W201-W202 -> 0 | Y203: =Y200+Y201-Y202 -> 0
C205: Net Book Value
D206: Opening Balance | I206: =I194+I200 -> 0 | K206: =I207 -> 0 | M206: =K207 -> 0 | O206: =M207 -> 0 | Q206: =O207 -> 0 | S206: =Q207 -> 0 | U206: =S207 -> 0 | W206: =U207 -> 0 | Y206: =W207 -> 0
D207: Closing Balance | I207: =I197+I203 -> 0 | K207: =K197+K203 -> 0 | M207: =M197+M203 -> 0 | O207: =O197+O203 -> 0 | Q207: =Q197+Q203 -> 0 | S207: =S197+S203 -> 0 | U207: =U197+U203 -> 0 | W207: =W197+W203 -> 0 | Y207: =Y197+Y203 -> 0
D208: Incremental CAPEX | I208: =I207 -> 0 | K208: =AVERAGE(K206:K207) -> 0 | M208: =AVERAGE(M206:M207) -> 0 | O208: =AVERAGE(O206:O207) -> 0 | Q208: =AVERAGE(Q206:Q207) -> 0 | S208: =AVERAGE(S206:S207) -> 0 | U208: =AVERAGE(U206:U207) -> 0 | W208: =AVERAGE(W206:W207) -> 0 | Y208: =AVERAGE(Y206:Y207) -> 0
B211: Net Fixed Assets - Distribution Station Equipment
C213: Gross Book Value
D214: Opening Balance | K214: =I217 -> 0 | M214: =K217 -> 0 | O214: =M217 -> 0 | Q214: =O217 -> 0 | S214: =Q217 -> 0 | U214: =S217 -> 0 | W214: =U217 -> 0 | Y214: =W217 -> 0
D215: Capital Additions during year (from ICM Costs) | I215: ='2. ICM_Costs'!G202 -> 0 | K215: ='2. ICM_Costs'!I238 -> 0 | M215: ='2. ICM_Costs'!K238 -> 0 | O215: ='2. ICM_Costs'!M238 -> 0 | Q215: ='2. ICM_Costs'!O238 -> 0 | S215: ='2. ICM_Costs'!Q238 -> 0 | U215: ='2. ICM_Costs'!S238 -> 0 | W215: ='2. ICM_Costs'!U238 -> 0 | Y215: ='2. ICM_Costs'!W238 -> 0
D216: Retirements/Removals (if applicable)
D217: Closing Balance | I217: =I214+I215-I216 -> 0 | K217: =K214+K215-K216 -> 0 | M217: =M214+M215-M216 -> 0 | O217: =O214+O215-O216 -> 0 | Q217: =Q214+Q215-Q216 -> 0 | S217: =S214+S215-S216 -> 0 | U217: =U214+U215-U216 -> 0 | W217: =W214+W215-W216 -> 0 | Y217: =Y214+Y215-Y216 -> 0
C219: Accumulated Depreciation
D220: Opening Balance | K220: =I223 -> 0 | M220: =K223 -> 0 | O220: =M223 -> 0 | Q220: =O223 -> 0 | S220: =Q223 -> 0 | U220: =S223 -> 0 | W220: =U223 -> 0 | Y220: =W223 -> 0
D221: Amortization expense during year | I221: =IF(ISERROR(-(I215/('3. Cost_of_Service_Parameters'!G65)+MIN((I214/'3. Cost_of_Service_Parameters'!G65),(I214+I220)))), 0, -(I215/('3. Cost_of_Service_Parameters'!G65)+MIN((I214/'3. Cost_of_Service_Parameters'!G65),(I214+I220)))) -> 0 | K221: =IF(ISERROR(-(K215/('3. Cost_of_Service_Parameters'!I65*2)+MIN((K214/'3. Cost_of_Service_Parameters'!I65),(K214+K220)))), 0, -(K215/('3. Cost_of_Service_Parameters'!I65*2)+MIN((K214/'3. Cost_of_Service_Parameters'!I65),(K214+K220)))) -> 0 | M221: =IF(ISERROR(-(M215/('3. Cost_of_Service_Parameters'!K65*2)+MIN((M214/'3. Cost_of_Service_Parameters'!K65),(M214+M220)))), 0, -(M215/('3. Cost_of_Service_Parameters'!K65*2)+MIN((M214/'3. Cost_of_Service_Parameters'!K65),(M214+M220)))) -> 0 | O221: =IF(ISERROR(-(O215/('3. Cost_of_Service_Parameters'!M65*2)+MIN((O214/'3. Cost_of_Service_Parameters'!M65),(O214+O220)))), 0, -(O215/('3. Cost_of_Service_Parameters'!M65*2)+MIN((O214/'3. Cost_of_Service_Parameters'!M65),(O214+O220)))) -> 0 | Q221: =IF(ISERROR(-(Q215/('3. Cost_of_Service_Parameters'!O65*2)+MIN((Q214/'3. Cost_of_Service_Parameters'!O65),(Q214+Q220)))), 0, -(Q215/('3. Cost_of_Service_Parameters'!O65*2)+MIN((Q214/'3. Cost_of_Service_Parameters'!O65),(Q214+Q220)))) -> 0 | S221: =IF(ISERROR(-(S215/('3. Cost_of_Service_Parameters'!Q65*2)+MIN((S214/'3. Cost_of_Service_Parameters'!Q65),(S214+S220)))), 0, -(S215/('3. Cost_of_Service_Parameters'!Q65*2)+MIN((S214/'3. Cost_of_Service_Parameters'!Q65),(S214+S220)))) -> 0 | U221: =IF(ISERROR(-(U215/('3. Cost_of_Service_Parameters'!S65*2)+MIN((U214/'3. Cost_of_Service_Parameters'!S65),(U214+U220)))), 0, -(U215/('3. Cost_of_Service_Parameters'!S65*2)+MIN((U214/'3. Cost_of_Service_Parameters'!S65),(U214+U220)))) -> 0 | W221: =IF(ISERROR(-(W215/('3. Cost_of_Service_Parameters'!U65*2)+MIN((W214/'3. Cost_of_Service_Parameters'!U65),(W214+W220)))), 0, -(W215/('3. Cost_of_Service_Parameters'!U65*2)+MIN((W214/'3. Cost_of_Service_Parameters'!U65),(W214+W220)))) -> 0 | Y221: =IF(ISERROR(-(Y215/('3. Cost_of_Service_Parameters'!W65*2)+MIN((Y214/'3. Cost_of_Service_Parameters'!W65),(Y214+Y220)))), 0, -(Y215/('3. Cost_of_Service_Parameters'!W65*2)+MIN((Y214/'3. Cost_of_Service_Parameters'!W65),(Y214+Y220)))) -> 0
D222: Retirements/Removals (if applicable)
D223: Closing Balance | I223: =I220+I221-I222 -> 0 | K223: =K220+K221-K222 -> 0 | M223: =M220+M221-M222 -> 0 | O223: =O220+O221-O222 -> 0 | Q223: =Q220+Q221-Q222 -> 0 | S223: =S220+S221-S222 -> 0 | U223: =U220+U221-U222 -> 0 | W223: =W220+W221-W222 -> 0 | Y223: =Y220+Y221-Y222 -> 0
C225: Net Book Value
D226: Opening Balance | I226: =I214+I220 -> 0 | K226: =I227 -> 0 | M226: =K227 -> 0 | O226: =M227 -> 0 | Q226: =O227 -> 0 | S226: =Q227 -> 0 | U226: =S227 -> 0 | W226: =U227 -> 0 | Y226: =W227 -> 0
D227: Closing Balance | I227: =I217+I223 -> 0 | K227: =K217+K223 -> 0 | M227: =M217+M223 -> 0 | O227: =O217+O223 -> 0 | Q227: =Q217+Q223 -> 0 | S227: =S217+S223 -> 0 | U227: =U217+U223 -> 0 | W227: =W217+W223 -> 0 | Y227: =Y217+Y223 -> 0
D228: Incremental CAPEX | I228: =I227 -> 0 | K228: =AVERAGE(K226:K227) -> 0 | M228: =AVERAGE(M226:M227) -> 0 | O228: =AVERAGE(O226:O227) -> 0 | Q228: =AVERAGE(Q226:Q227) -> 0 | S228: =AVERAGE(S226:S227) -> 0 | U228: =AVERAGE(U226:U227) -> 0 | W228: =AVERAGE(W226:W227) -> 0 | Y228: =AVERAGE(Y226:Y227) -> 0
B231: Net Fixed Assets - Transformer Station Equipment
C233: Gross Book Value
D234: Opening Balance | K234: =I237 -> 0 | M234: =K237 -> 0 | O234: =M237 -> 0 | Q234: =O237 -> 0 | S234: =Q237 -> 0 | U234: =S237 -> 0 | W234: =U237 -> 0 | Y234: =W237 -> 0
D235: Capital Additions during year (from ICM Costs) | I235: ='2. ICM_Costs'!G204 -> 0 | K235: ='2. ICM_Costs'!I258 -> 0 | M235: ='2. ICM_Costs'!K258 -> 0 | O235: ='2. ICM_Costs'!M258 -> 0 | Q235: ='2. ICM_Costs'!O258 -> 0 | S235: ='2. ICM_Costs'!Q258 -> 0 | U235: ='2. ICM_Costs'!S258 -> 0 | W235: ='2. ICM_Costs'!U258 -> 0 | Y235: ='2. ICM_Costs'!W258 -> 0
D236: Retirements/Removals (if applicable)
D237: Closing Balance | I237: =I234+I235-I236 -> 0 | K237: =K234+K235-K236 -> 0 | M237: =M234+M235-M236 -> 0 | O237: =O234+O235-O236 -> 0 | Q237: =Q234+Q235-Q236 -> 0 | S237: =S234+S235-S236 -> 0 | U237: =U234+U235-U236 -> 0 | W237: =W234+W235-W236 -> 0 | Y237: =Y234+Y235-Y236 -> 0
C239: Accumulated Depreciation
D240: Opening Balance | K240: =I243 -> 0 | M240: =K243 -> 0 | O240: =M243 -> 0 | Q240: =O243 -> 0 | S240: =Q243 -> 0 | U240: =S243 -> 0 | W240: =U243 -> 0 | Y240: =W243 -> 0
D241: Amortization expense during year | I241: =IF(ISERROR(-(I235/('3. Cost_of_Service_Parameters'!G67)+MIN((I234/'3. Cost_of_Service_Parameters'!G67),(I234+I240)))), 0, -(I235/('3. Cost_of_Service_Parameters'!G67)+MIN((I234/'3. Cost_of_Service_Parameters'!G67),(I234+I240)))) -> 0 | K241: =IF(ISERROR(-(K235/('3. Cost_of_Service_Parameters'!I67*2)+MIN((K234/'3. Cost_of_Service_Parameters'!I67),(K234+K240)))), 0, -(K235/('3. Cost_of_Service_Parameters'!I67*2)+MIN((K234/'3. Cost_of_Service_Parameters'!I67),(K234+K240)))) -> 0 | M241: =IF(ISERROR(-(M235/('3. Cost_of_Service_Parameters'!K67*2)+MIN((M234/'3. Cost_of_Service_Parameters'!K67),(M234+M240)))), 0, -(M235/('3. Cost_of_Service_Parameters'!K67*2)+MIN((M234/'3. Cost_of_Service_Parameters'!K67),(M234+M240)))) -> 0 | O241: =IF(ISERROR(-(O235/('3. Cost_of_Service_Parameters'!M67*2)+MIN((O234/'3. Cost_of_Service_Parameters'!M67),(O234+O240)))), 0, -(O235/('3. Cost_of_Service_Parameters'!M67*2)+MIN((O234/'3. Cost_of_Service_Parameters'!M67),(O234+O240)))) -> 0 | Q241: =IF(ISERROR(-(Q235/('3. Cost_of_Service_Parameters'!O67*2)+MIN((Q234/'3. Cost_of_Service_Parameters'!O67),(Q234+Q240)))), 0, -(Q235/('3. Cost_of_Service_Parameters'!O67*2)+MIN((Q234/'3. Cost_of_Service_Parameters'!O67),(Q234+Q240)))) -> 0 | S241: =IF(ISERROR(-(S235/('3. Cost_of_Service_Parameters'!Q67*2)+MIN((S234/'3. Cost_of_Service_Parameters'!Q67),(S234+S240)))), 0, -(S235/('3. Cost_of_Service_Parameters'!Q67*2)+MIN((S234/'3. Cost_of_Service_Parameters'!Q67),(S234+S240)))) -> 0 | U241: =IF(ISERROR(-(U235/('3. Cost_of_Service_Parameters'!S67*2)+MIN((U234/'3. Cost_of_Service_Parameters'!S67),(U234+U240)))), 0, -(U235/('3. Cost_of_Service_Parameters'!S67*2)+MIN((U234/'3. Cost_of_Service_Parameters'!S67),(U234+U240)))) -> 0 | W241: =IF(ISERROR(-(W235/('3. Cost_of_Service_Parameters'!U67*2)+MIN((W234/'3. Cost_of_Service_Parameters'!U67),(W234+W240)))), 0, -(W235/('3. Cost_of_Service_Parameters'!U67*2)+MIN((W234/'3. Cost_of_Service_Parameters'!U67),(W234+W240)))) -> 0 | Y241: =IF(ISERROR(-(Y235/('3. Cost_of_Service_Parameters'!W67*2)+MIN((Y234/'3. Cost_of_Service_Parameters'!W67),(Y234+Y240)))), 0, -(Y235/('3. Cost_of_Service_Parameters'!W67*2)+MIN((Y234/'3. Cost_of_Service_Parameters'!W67),(Y234+Y240)))) -> 0
D242: Retirements/Removals (if applicable)
D243: Closing Balance | I243: =I240+I241-I242 -> 0 | K243: =K240+K241-K242 -> 0 | M243: =M240+M241-M242 -> 0 | O243: =O240+O241-O242 -> 0 | Q243: =Q240+Q241-Q242 -> 0 | S243: =S240+S241-S242 -> 0 | U243: =U240+U241-U242 -> 0 | W243: =W240+W241-W242 -> 0 | Y243: =Y240+Y241-Y242 -> 0
C245: Net Book Value
D246: Opening Balance | I246: =I234+I240 -> 0 | K246: =I247 -> 0 | M246: =K247 -> 0 | O246: =M247 -> 0 | Q246: =O247 -> 0 | S246: =Q247 -> 0 | U246: =S247 -> 0 | W246: =U247 -> 0 | Y246: =W247 -> 0
D247: Closing Balance | I247: =I237+I243 -> 0 | K247: =K237+K243 -> 0 | M247: =M237+M243 -> 0 | O247: =O237+O243 -> 0 | Q247: =Q237+Q243 -> 0 | S247: =S237+S243 -> 0 | U247: =U237+U243 -> 0 | W247: =W237+W243 -> 0 | Y247: =Y237+Y243 -> 0
D248: Incremental CAPEX | I248: =I247 -> 0 | K248: =AVERAGE(K246:K247) -> 0 | M248: =AVERAGE(M246:M247) -> 0 | O248: =AVERAGE(O246:O247) -> 0 | Q248: =AVERAGE(Q246:Q247) -> 0 | S248: =AVERAGE(S246:S247) -> 0 | U248: =AVERAGE(U246:U247) -> 0 | W248: =AVERAGE(W246:W247) -> 0 | Y248: =AVERAGE(Y246:Y247) -> 0
B251: Net Fixed Assets - Land Rights
C253: Gross Book Value
D254: Opening Balance | K254: =I257 -> 0 | M254: =K257 -> 0 | O254: =M257 -> 0 | Q254: =O257 -> 0 | S254: =Q257 -> 0 | U254: =S257 -> 0 | W254: =U257 -> 0 | Y254: =W257 -> 0
D255: Capital Additions during year (from ICM Costs) | I255: ='2. ICM_Costs'!G206 -> 0 | K255: ='2. ICM_Costs'!I278 -> 0 | M255: ='2. ICM_Costs'!K278 -> 0 | O255: ='2. ICM_Costs'!M278 -> 0 | Q255: ='2. ICM_Costs'!O278 -> 0 | S255: ='2. ICM_Costs'!Q278 -> 0 | U255: ='2. ICM_Costs'!S278 -> 0 | W255: ='2. ICM_Costs'!U278 -> 0 | Y255: ='2. ICM_Costs'!W278 -> 0
D256: Retirements/Removals (if applicable)
D257: Closing Balance | I257: =I254+I255-I256 -> 0 | K257: =K254+K255-K256 -> 0 | M257: =M254+M255-M256 -> 0 | O257: =O254+O255-O256 -> 0 | Q257: =Q254+Q255-Q256 -> 0 | S257: =S254+S255-S256 -> 0 | U257: =U254+U255-U256 -> 0 | W257: =W254+W255-W256 -> 0 | Y257: =Y254+Y255-Y256 -> 0
C259: Accumulated Depreciation
D260: Opening Balance | K260: =I263 -> 0 | M260: =K263 -> 0 | O260: =M263 -> 0 | Q260: =O263 -> 0 | S260: =Q263 -> 0 | U260: =S263 -> 0 | W260: =U263 -> 0 | Y260: =W263 -> 0
D261: Amortization expense during year | I261: =IF(ISERROR(-(I255/('3. Cost_of_Service_Parameters'!G69*2)+MIN((I254/'3. Cost_of_Service_Parameters'!G69),(I254+I260)))), 0, -(I255/('3. Cost_of_Service_Parameters'!G69*2)+MIN((I254/'3. Cost_of_Service_Parameters'!G69),(I254+I260)))) -> 0 | K261: =IF(ISERROR(-(K255/('3. Cost_of_Service_Parameters'!I69*2)+MIN((K254/'3. Cost_of_Service_Parameters'!I69),(K254+K260)))), 0, -(K255/('3. Cost_of_Service_Parameters'!I69*2)+MIN((K254/'3. Cost_of_Service_Parameters'!I69),(K254+K260)))) -> 0 | M261: =IF(ISERROR(-(M255/('3. Cost_of_Service_Parameters'!K69*2)+MIN((M254/'3. Cost_of_Service_Parameters'!K69),(M254+M260)))), 0, -(M255/('3. Cost_of_Service_Parameters'!K69*2)+MIN((M254/'3. Cost_of_Service_Parameters'!K69),(M254+M260)))) -> 0 | O261: =IF(ISERROR(-(O255/('3. Cost_of_Service_Parameters'!M69*2)+MIN((O254/'3. Cost_of_Service_Parameters'!M69),(O254+O260)))), 0, -(O255/('3. Cost_of_Service_Parameters'!M69*2)+MIN((O254/'3. Cost_of_Service_Parameters'!M69),(O254+O260)))) -> 0 | Q261: =IF(ISERROR(-(Q255/('3. Cost_of_Service_Parameters'!O69*2)+MIN((Q254/'3. Cost_of_Service_Parameters'!O69),(Q254+Q260)))), 0, -(Q255/('3. Cost_of_Service_Parameters'!O69*2)+MIN((Q254/'3. Cost_of_Service_Parameters'!O69),(Q254+Q260)))) -> 0 | S261: =IF(ISERROR(-(S255/('3. Cost_of_Service_Parameters'!Q69*2)+MIN((S254/'3. Cost_of_Service_Parameters'!Q69),(S254+S260)))), 0, -(S255/('3. Cost_of_Service_Parameters'!Q69*2)+MIN((S254/'3. Cost_of_Service_Parameters'!Q69),(S254+S260)))) -> 0 | U261: =IF(ISERROR(-(U255/('3. Cost_of_Service_Parameters'!S69*2)+MIN((U254/'3. Cost_of_Service_Parameters'!S69),(U254+U260)))), 0, -(U255/('3. Cost_of_Service_Parameters'!S69*2)+MIN((U254/'3. Cost_of_Service_Parameters'!S69),(U254+U260)))) -> 0 | W261: =IF(ISERROR(-(W255/('3. Cost_of_Service_Parameters'!U69*2)+MIN((W254/'3. Cost_of_Service_Parameters'!U69),(W254+W260)))), 0, -(W255/('3. Cost_of_Service_Parameters'!U69*2)+MIN((W254/'3. Cost_of_Service_Parameters'!U69),(W254+W260)))) -> 0 | Y261: =IF(ISERROR(-(Y255/('3. Cost_of_Service_Parameters'!W69*2)+MIN((Y254/'3. Cost_of_Service_Parameters'!W69),(Y254+Y260)))), 0, -(Y255/('3. Cost_of_Service_Parameters'!W69*2)+MIN((Y254/'3. Cost_of_Service_Parameters'!W69),(Y254+Y260)))) -> 0
D262: Retirements/Removals (if applicable)
D263: Closing Balance | I263: =I260+I261-I262 -> 0 | K263: =K260+K261-K262 -> 0 | M263: =M260+M261-M262 -> 0 | O263: =O260+O261-O262 -> 0 | Q263: =Q260+Q261-Q262 -> 0 | S263: =S260+S261-S262 -> 0 | U263: =U260+U261-U262 -> 0 | W263: =W260+W261-W262 -> 0 | Y263: =Y260+Y261-Y262 -> 0
C265: Net Book Value
D266: Opening Balance | I266: =I254+I260 -> 0 | K266: =I267 -> 0 | M266: =K267 -> 0 | O266: =M267 -> 0 | Q266: =O267 -> 0 | S266: =Q267 -> 0 | U266: =S267 -> 0 | W266: =U267 -> 0 | Y266: =W267 -> 0
D267: Closing Balance | I267: =I257+I263 -> 0 | K267: =K257+K263 -> 0 | M267: =M257+M263 -> 0 | O267: =O257+O263 -> 0 | Q267: =Q257+Q263 -> 0 | S267: =S257+S263 -> 0 | U267: =U257+U263 -> 0 | W267: =W257+W263 -> 0 | Y267: =Y257+Y263 -> 0
D268: Incremental CAPEX | I268: =I267 -> 0 | K268: =AVERAGE(K266:K267) -> 0 | M268: =AVERAGE(M266:M267) -> 0 | O268: =AVERAGE(O266:O267) -> 0 | Q268: =AVERAGE(Q266:Q267) -> 0 | S268: =AVERAGE(S266:S267) -> 0 | U268: =AVERAGE(U266:U267) -> 0 | W268: =AVERAGE(W266:W267) -> 0 | Y268: =AVERAGE(Y266:Y267) -> 0
B271: Net Fixed Assets -CCR&A contributions
C273: Gross Book Value
D274: Opening Balance | K274: =I277 -> 0 | M274: =K277 -> 0 | O274: =M277 -> 0 | Q274: =O277 -> 0 | S274: =Q277 -> 0 | U274: =S277 -> 0 | W274: =U277 -> 0 | Y274: =W277 -> 0
... 15 more rows

Sheet 5. UCC_Calculation
A18: Sheet 6: CCA For PILs Calculation
A20: UCC/Class 47 | D20: ='3. Cost_of_Service_Parameters'!G19 -> 2018
D21: ='2. ICM_Costs'!G19 -> Audited Actual
A23: Opening UCC | D23: 0
A24: Capital Additions | D24: ='2. ICM_Costs'!K211 -> 6804600
A25: Retirements/Removals (if applicable)
A26: UCC Full Year | D26: =SUM(D23:D24)-D25 -> 6804600
A29: CCA Rate Class | D29: ='3. Cost_of_Service_Parameters'!G134 -> 47
A30: CCA Rate | D30: ='3. Cost_of_Service_Parameters'!G135 -> 0.08
A31: CCA | D31: =D26*D30 -> 544368
A32: Closing UCC | D32: =IF((D26-D31)<0, 0, D26-D31) -> 6260232
A34: UCC/Class 8 | D34: =D20 -> 2018
D35: Audited Actual
A37: Opening UCC | D37: 0
A38: Capital Additions RTU's | D38: 0
A39: Retirements/Removals (if applicable)
A40: UCC Full Year | D40: =SUM(D37:D38)-D39 -> 0
A43: CCA Rate Class | D43: ='3. Cost_of_Service_Parameters'!G107 -> 47
A44: CCA Rate | D44: ='3. Cost_of_Service_Parameters'!G108 -> 0.08
A45: CCA | D45: =D40*D44 -> 0
A46: Closing UCC | D46: =IF((D40-D45)<0, 0, D40-D45) -> 0

Sheet 7. Rate Rider Revs
B13: This worksheet calculates the rate riders revenues.
B17: Sheet 7: ICM Rate Rider Revenues
B22: Prescribed Interest Rates | C22: Approved Deferral and Variance Accounts | D22: CWIP | F22: Date | G22: Year | H22: Quarter | J22: Opening Balance (Principal) | K22: Rate Rider Revenues | L22: Interest Rate | M22: Interest | N22: Principal & Interest (Cumm.) | P22: Board Approved ICM Rate Rider | Q22: Board Approved ICM Rate Rider (Cumm.)
B24: 2018 Q1 | C24: 0.015 | D24: 0.0299 | F24: 2018-01-01 | G24: =YEAR(F24) -> 2018 | H24: =IF(MONTH(F24)=0,"",IF(MONTH(F24)<4,"Q1",IF(MONTH(F24)<7,"Q2",IF(MONTH(F24)<10,"Q3","Q4")))) -> Q1 | I24: =CONCATENATE(G24," ",H24) -> 2018 Q1 | J24: 0 | L24: 0.015 | M24: =ROUND(J24*L24/12,2) -> 0 | N24: =K24+M24 -> 0 | Q24: =P24 -> 0
B25: 2018 Q2 | C25: 0.0189 | D25: 0.0335 | F25: 2018-02-01 | G25: =YEAR(F25) -> 2018 | H25: =IF(MONTH(F25)=0,"",IF(MONTH(F25)<4,"Q1",IF(MONTH(F25)<7,"Q2",IF(MONTH(F25)<10,"Q3","Q4")))) -> Q1 | I25: =CONCATENATE(G25," ",H25) -> 2018 Q1 | J25: =J24+K24 -> 0 | L25: 0.015 | M25: =ROUND(J25*L25/12,2) -> 0 | N25: =N24+K25+M25 -> 0 | Q25: =Q24+P25 -> 0
B26: 2018 Q3 | C26: 0.0189 | D26: 0.0335 | F26: 2018-03-01 | G26: 2018 | H26: Q1 | I26: 2018 Q1 | J26: =J25+K25 -> 0 | L26: 0.015 | M26: 0 | N26: =N25+K26+M26 -> 0 | Q26: =Q25+P26 -> 0
B27: 2018 Q4 | C27: 0.0217 | D27: 0.0335 | F27: 2018-04-01 | G27: 2018 | H27: Q2 | I27: 2018 Q2 | J27: 0 | L27: 0.0189 | M27: 0 | N27: 0 | Q27: 0
B28: 2019 Q1 | C28: 0.0245 | D28: 0.0382 | F28: 2018-05-01 | G28: 2018 | H28: Q2 | I28: 2018 Q2 | J28: 0 | K28: 64808.48 | L28: 0.0189 | M28: 0 | N28: 64808.48 | P28: 58899.46899 | Q28: =Q27+P28 -> 58899.46899
B29: 2019 Q2 | C29: 0.0218 | D29: 0.0339 | F29: 2018-06-01 | G29: 2018 | H29: Q2 | I29: 2018 Q2 | J29: 64808.48 | K29: 57571.52 | L29: 0.0189 | M29: =ROUND(J29*L29/12,2) -> 102.07 | N29: 122482.07 | P29: 58899.46899 | Q29: 117798.938
B30: 2019 Q3 | C30: 0.0218 | D30: 0.0288 | F30: 2018-07-01 | G30: 2018 | H30: Q3 | I30: 2018 Q3 | J30: 122380 | K30: 62441.65 | L30: 0.0189 | M30: 192.75 | N30: 185116.47 | P30: 58899.46899 | Q30: 176698.407
B31: 2019 Q4 | C31: 0.0218 | D31: 0.0288 | F31: 2018-08-01 | G31: 2018 | H31: Q3 | I31: 2018 Q3 | J31: 184821.65 | K31: 64110.92 | L31: 0.0189 | M31: 291.09 | N31: 249518.48 | P31: 58899.46899 | Q31: 235597.8759
B32: 2020 Q1 | C32: 0.0218 | D32: 0.0288 | F32: 2018-09-01 | G32: 2018 | H32: Q3 | I32: 2018 Q3 | J32: 248932.57 | K32: 59870.18 | L32: 0.0189 | M32: 392.07 | N32: 309780.73 | P32: 58899.46899 | Q32: 294497.3449
B33: 2020 Q2 | C33: 0.0218 | D33: 0.0248 | F33: 2018-10-01 | G33: 2018 | H33: Q4 | I33: 2018 Q4 | J33: 308802.75 | K33: 63550.9 | L33: 0.0217 | M33: 558.42 | N33: 373890.05 | P33: 58899.46899 | Q33: 353396.8139
B34: 2020 Q3 | C34: 0.0057 | D34: 0.0248 | F34: 2018-11-01 | G34: 2018 | H34: Q4 | I34: 2018 Q4 | J34: 372353.65 | K34: 59797.8 | L34: 0.0217 | M34: 673.34 | N34: 434361.19 | P34: 58899.46899 | Q34: 412296.2829
B35: 2020 Q4 | C35: 0.0057 | D35: 0.0203 | F35: 2018-12-01 | G35: 2018 | H35: Q4 | I35: 2018 Q4 | J35: 432151.45 | K35: 61863.25 | L35: 0.0217 | M35: 781.47 | N35: 497005.91 | P35: 58899.46899 | Q35: 471195.7519
B36: 2021 Q1 | C36: 0.0057 | D36: 0.0203 | F36: 2019-01-01 | G36: 2019 | H36: Q1 | I36: 2019 Q1 | J36: 494014.7 | K36: 64423.1 | L36: 0.0245 | M36: =ROUND(J36*L36/12,2) -> 1008.61 | N36: 562437.62 | P36: 58899.46899 | Q36: 530095.2209
B37: 2021 Q2 | C37: 0.0057 | D37: 0.0229 | F37: 2019-02-01 | G37: 2019 | H37: Q1 | I37: 2019 Q1 | J37: 558437.8 | K37: 55891.3 | L37: 0.0245 | M37: 1140.14 | N37: 619469.06 | P37: 58899.46899 | Q37: 588994.6899
B38: 2021 Q3 | C38: 0.0057 | D38: 0.0229 | F38: 2019-03-01 | G38: 2019 | H38: Q1 | I38: 2019 Q1 | J38: 614329.1 | K38: 64213.56 | L38: 0.0245 | M38: 1254.26 | N38: 684936.88 | P38: 58899.46899 | Q38: 647894.1588
B39: 2021 Q4 | C39: 0.0057 | D39: 0.0229 | F39: 2019-04-01 | G39: 2019 | H39: Q2 | I39: 2019 Q2 | J39: 678542.66 | K39: 60829.39 | L39: 0.0218 | M39: 1232.69 | N39: 746998.96 | P39: 58899.46899 | Q39: 706793.6278
B40: 2022 Q1 | C40: 0.0057 | D40: 0.0272 | F40: 2019-05-01 | G40: 2019 | H40: Q2 | I40: 2019 Q2 | J40: 739372.05 | K40: 61141.29 | L40: 0.0218 | M40: 1343.19 | N40: 809483.44 | P40: 58899.46899 | Q40: 765693.0968
B41: 2022 Q2 | C41: 0.0102 | D41: 0.0331 | F41: 2019-06-01 | G41: 2019 | H41: Q2 | I41: 2019 Q2 | J41: 800513.34 | K41: 59032.7 | L41: 0.0218 | M41: 1454.27 | N41: 869970.41 | P41: 58899.46899 | Q41: 824592.5658
B42: 2022 Q3 | C42: 0.022 | D42: 0.0466 | F42: 2019-07-01 | G42: 2019 | H42: Q3 | I42: 2019 Q3 | J42: 859546.04 | K42: 66688.38 | L42: 0.0218 | M42: 1561.51 | N42: 938220.3 | P42: 58899.46899 | Q42: 883492.0348
B43: 2022 Q4 | C43: 0.0387 | D43: 0.0501 | F43: 2019-08-01 | G43: 2019 | H43: Q3 | I43: 2019 Q3 | J43: 926234.42 | K43: 61437.36 | L43: 0.0218 | M43: 1682.66 | N43: 1001340.32 | P43: 58899.46899 | Q43: 942391.5038
B44: 2023 Q1 | C44: 0.0473 | D44: 0.0501 | F44: 2019-09-01 | G44: 2019 | H44: Q3 | I44: 2019 Q3 | J44: 987671.78 | K44: 59205.7 | L44: 0.0218 | M44: 1794.27 | N44: 1062340.29 | P44: 58899.46899 | Q44: 1001290.973
B45: 2023 Q2 | C45: 0.0498 | D45: 0.0501 | F45: 2019-10-01 | G45: 2019 | H45: Q4 | I45: 2019 Q4 | J45: 1046877.48 | K45: 64597.6 | L45: 0.0218 | M45: 1901.83 | N45: 1128839.72 | P45: 58899.46899 | Q45: 1060190.442
B46: 2023 Q3 | C46: 0.0498 | D46: 0.0501 | F46: 2019-11-01 | G46: 2019 | H46: Q4 | I46: 2019 Q4 | J46: 1111475.08 | K46: 59038.21 | L46: 0.0218 | M46: 2019.18 | N46: 1189897.11 | P46: 58899.46899 | Q46: 1119089.911
B47: 2023 Q4 | C47: 0.0549 | D47: 0.0548 | F47: 2019-12-01 | G47: 2019 | H47: Q4 | I47: 2019 Q4 | J47: 1170513.29 | K47: 63618.85 | L47: 0.0218 | M47: 2126.43 | N47: 1255642.39 | P47: 58899.46899 | Q47: 1177989.38
B48: 2024 Q1 | C48: 0.0549 | D48: 0.0548 | F48: 2020-01-01 | G48: 2020 | H48: Q1 | I48: 2020 Q1 | J48: 1234132.14 | K48: 60129.67 | L48: 0.0218 | M48: =ROUND(J48*L48/12,2) -> 2242.01 | N48: =N47+K48+M48 -> 1318014.07 | P48: 58899.46899 | Q48: =Q47+P48 -> 1236888.849
B49: 2024 Q2 | C49: 0.0549 | D49: 0.0598 | F49: 2020-02-01 | G49: 2020 | H49: Q1 | I49: 2020 Q1 | J49: 1294261.81 | K49: 58023.16 | L49: 0.0218 | M49: 2351.24 | N49: 1378388.47 | P49: 58899.46899 | Q49: 1295788.318
B50: 2024 Q3 | C50: 0.052 | D50: 0.0598 | F50: 2020-03-01 | G50: 2020 | H50: Q1 | I50: 2020 Q1 | J50: 1352284.97 | K50: 66683 | L50: 0.0218 | M50: 2456.65 | N50: 1447528.12 | P50: 58899.46899 | Q50: 1354687.787
B51: 2024 Q4 | C51: 0.044 | D51: 0.0455 | F51: 2020-04-01 | G51: 2020 | H51: Q2 | I51: 2020 Q2 | J51: 1418967.97 | K51: 55189.11 | L51: 0.0218 | M51: 2577.79 | N51: 1505295.02 | P51: 58899.46899 | Q51: 1413587.256
B52: 2025 Q1 | C52: 0.0364 | D52: 0.0423 | F52: 2020-05-01 | G52: 2020 | H52: Q2 | I52: 2020 Q2 | J52: 1474157.08 | K52: 59696.85 | L52: 0.0218 | M52: 2678.05 | N52: 1567669.92 | P52: 58899.46899 | Q52: 1472486.725
B53: 2025 Q2 | C53: 0.0316 | D53: 0.0423 | F53: 2020-06-01 | G53: 2020 | H53: Q2 | I53: 2020 Q2 | J53: 1533853.93 | K53: 63134.08 | L53: 0.0218 | M53: 2786.5 | N53: 1633590.5 | P53: 58899.46899 | Q53: 1531386.194
B54: 2025 Q3 | C54: 0.0291 | D54: 0.0423 | F54: 2020-07-01 | G54: 2020 | H54: Q3 | I54: 2020 Q3 | J54: 1596988.01 | K54: 62980.84 | L54: 0.0057 | M54: 758.57 | N54: 1697329.91 | P54: 58899.46899 | Q54: 1590285.663
B55: 2025 Q4 | C55: 0.0291 | D55: 0.0423 | F55: 2020-08-01 | G55: 2020 | H55: Q3 | I55: 2020 Q3 | J55: 1659968.85 | K55: 61270.66 | L55: 0.0057 | M55: 788.49 | N55: 1759389.06 | P55: 58899.46899 | Q55: 1649185.132
B56: 2026 Q1 | C56: 0.0255 | D56: 0.0423 | F56: 2020-09-01 | G56: 2020 | H56: Q3 | I56: 2020 Q3 | J56: 1721239.51 | K56: 59297.6 | L56: 0.0057 | M56: 817.59 | N56: 1819504.25 | P56: 58899.46899 | Q56: 1708084.601
B57: 2026 Q2 | C57: 0.0255 | D57: 0.0423 | F57: 2020-10-01 | G57: 2020 | H57: Q4 | I57: 2020 Q4 | J57: 1780537.11 | K57: 61987.05 | L57: 0.0057 | M57: 845.76 | N57: 1882337.06 | P57: 58899.46899 | Q57: 1766984.07
B58: 2026 Q3 | C58: 0.0255 | D58: 0.0423 | F58: 2020-11-01 | G58: 2020 | H58: Q4 | I58: 2020 Q4 | J58: 1842524.16 | K58: 59969.24 | L58: 0.0057 | M58: 875.2 | N58: 1943181.5 | P58: 58899.46899 | Q58: 1825883.539
B59: 2026 Q4 | C59: 0.0255 | D59: 0.0423 | F59: 2020-12-01 | G59: 2020 | H59: =IF(MONTH(F59)=0,"",IF(MONTH(F59)<4,"Q1",IF(MONTH(F59)<7,"Q2",IF(MONTH(F59)<10,"Q3","Q4")))) -> Q4 | I59: 2020 Q4 | J59: 1902493.4 | K59: 62959.37 | L59: 0.0057 | M59: 903.68 | N59: 2007044.55 | P59: 58899.46899 | Q59: 1884783.008
F60: 2021-01-01 | G60: 2021 | H60: Q1 | I60: 2021 Q1 | J60: =J59+K59 -> 1965452.77 | K60: 59266.2 | L60: 0.0057 | M60: 933.59 | N60: 2067244.34 | P60: 58899.46899 | Q60: 1943682.477
B61: Note: 2026 Interest rates are forecasted. | F61: 2021-02-01 | G61: 2021 | H61: Q1 | I61: 2021 Q1 | J61: 2024718.97 | K61: 57985.83 | L61: 0.0057 | M61: 961.74 | N61: 2126191.91 | P61: 58899.46899 | Q61: 2002581.946
F62: 2021-03-01 | G62: 2021 | H62: Q1 | I62: 2021 Q1 | J62: 2082704.8 | K62: 67867.2 | L62: 0.0057 | M62: 989.28 | N62: 2195048.39 | P62: 58899.46899 | Q62: 2061481.414
F63: 2021-04-01 | G63: 2021 | H63: Q2 | I63: 2021 Q2 | J63: 2150572 | K63: 52751.28 | L63: 0.0057 | M63: 1021.52 | N63: 2248821.19 | P63: 58899.46899 | Q63: 2120380.883
F64: 2021-05-01 | G64: 2021 | H64: Q2 | I64: 2021 Q2 | J64: 2203323.28 | K64: 63316.09 | L64: 0.0057 | M64: 1046.58 | N64: 2313183.86 | P64: 58899.46899 | Q64: 2179280.352
F65: 2021-06-01 | G65: 2021 | H65: Q2 | I65: 2021 Q2 | J65: 2266639.37 | K65: 62164.06 | L65: 0.0057 | M65: 1076.65 | N65: 2376424.57 | P65: 58899.46899 | Q65: 2238179.821
F66: 2021-07-01 | G66: 2021 | H66: Q3 | I66: 2021 Q3 | J66: 2328803.43 | K66: 60828.9 | L66: 0.0057 | M66: 1106.18 | N66: 2438359.65 | P66: 58899.46899 | Q66: 2297079.29
F67: 2021-08-01 | G67: 2021 | H67: Q3 | I67: 2021 Q3 | J67: 2389632.33 | K67: 67303.28 | L67: 0.0057 | M67: 1135.08 | N67: 2506798.01 | P67: 58899.46899 | Q67: 2355978.759
F68: 2021-09-01 | G68: 2021 | H68: Q3 | I68: 2021 Q3 | J68: 2456935.61 | K68: 61184.1 | L68: 0.0057 | M68: 1167.04 | N68: 2569149.15 | P68: 58899.46899 | Q68: 2414878.228
F69: 2021-10-01 | G69: 2021 | H69: Q4 | I69: 2021 Q4 | J69: 2518119.71 | K69: 61790.66 | L69: 0.0057 | M69: 1196.11 | N69: 2632135.92 | P69: 58899.46899 | Q69: 2473777.697
F70: 2021-11-01 | G70: 2021 | H70: Q4 | I70: 2021 Q4 | J70: 2579910.37 | K70: 63643.77 | L70: 0.0057 | M70: 1225.46 | N70: 2697005.15 | P70: 58899.46899 | Q70: 2532677.166
F71: 2021-12-01 | G71: 2021 | H71: =IF(MONTH(F71)=0,"",IF(MONTH(F71)<4,"Q1",IF(MONTH(F71)<7,"Q2",IF(MONTH(F71)<10,"Q3","Q4")))) -> Q4 | I71: 2021 Q4 | J71: 2643554.14 | K71: 62462.97 | L71: 0.0057 | M71: 1255.69 | N71: 2760723.81 | P71: 58899.46899 | Q71: 2591576.635
F72: 2022-01-01 | G72: =YEAR(F72) -> 2022 | H72: =IF(MONTH(F72)=0,"",IF(MONTH(F72)<4,"Q1",IF(MONTH(F72)<7,"Q2",IF(MONTH(F72)<10,"Q3","Q4")))) -> Q1 | I72: 2022 Q1 | J72: =J71+K71 -> 2706017.11 | K72: 59216.24 | L72: 0.0057 | M72: =ROUND(J72*L72/12,2) -> 1285.36 | N72: =N71+K72+M72 -> 2821225.41 | P72: 58899.46899 | Q72: =Q71+P72 -> 2650476.104
F73: 2022-02-01 | G73: 2022 | H73: Q1 | I73: 2022 Q1 | J73: 2765233.35 | K73: 59701.73 | L73: 0.0057 | M73: 1313.49 | N73: 2882240.63 | P73: 58899.46899 | Q73: 2709375.573
F74: 2022-03-01 | G74: 2022 | H74: Q1 | I74: 2022 Q1 | J74: 2824935.08 | K74: 66606.36 | L74: 0.0057 | M74: 1341.84 | N74: 2950188.83 | P74: 58899.46899 | Q74: 2768275.042
F75: 2022-04-01 | G75: 2022 | H75: Q2 | I75: 2022 Q2 | J75: 2891541.44 | K75: 57505.03 | L75: 0.0102 | M75: 2457.81 | N75: 3010151.67 | P75: 58899.46899 | Q75: 2827174.511
F76: 2022-05-01 | G76: 2022 | H76: Q2 | I76: 2022 Q2 | J76: 2949046.47 | K76: 64671.51 | L76: 0.0102 | M76: 2506.69 | N76: 3077329.87 | P76: 58899.46899 | Q76: 2886073.98
F77: 2022-06-01 | G77: 2022 | H77: Q2 | I77: 2022 Q2 | J77: 3013717.98 | K77: 63087.85 | L77: 0.0102 | M77: 2561.66 | N77: 3142979.38 | P77: 58899.46899 | Q77: 2944973.449
F78: 2022-07-01 | G78: 2022 | H78: Q3 | I78: 2022 Q3 | J78: 3076805.83 | K78: 63517.86 | L78: 0.022 | M78: 5640.81 | N78: 3212138.05 | P78: 58899.46899 | Q78: 3003872.918
F79: 2022-08-01 | G79: 2022 | H79: Q3 | I79: 2022 Q3 | J79: 3140323.69 | K79: 67186.54 | L79: 0.022 | M79: 5757.26 | N79: 3285081.85 | P79: 58899.46899 | Q79: 3062772.387
F80: 2022-09-01 | G80: 2022 | H80: Q3 | I80: 2022 Q3 | J80: 3207510.23 | K80: 59030.18 | L80: 0.022 | M80: 5880.44 | N80: 3349992.47 | P80: 58899.46899 | Q80: 3121671.856
F81: 2022-10-01 | G81: 2022 | H81: Q4 | I81: 2022 Q4 | J81: 3266540.41 | K81: 62121.07 | L81: 0.0387 | M81: 10534.59 | N81: 3422648.13 | P81: 58899.46899 | Q81: 3180571.325
F82: 2022-11-01 | G82: 2022 | H82: Q4 | I82: 2022 Q4 | J82: 3328661.48 | K82: 59784.57 | L82: 0.0387 | M82: 10734.93 | N82: 3493167.63 | P82: 58899.46899 | Q82: 3239470.794
F83: 2022-12-01 | G83: 2022 | H83: =IF(MONTH(F83)=0,"",IF(MONTH(F83)<4,"Q1",IF(MONTH(F83)<7,"Q2",IF(MONTH(F83)<10,"Q3","Q4")))) -> Q4 | I83: 2022 Q4 | J83: 3388446.05 | K83: 65938.04 | L83: 0.0387 | M83: 10927.74 | N83: 3570033.41 | P83: 58899.46899 | Q83: 3298370.263
F84: 2023-01-01 | G84: =YEAR(F84) -> 2023 | H84: =IF(MONTH(F84)=0,"",IF(MONTH(F84)<4,"Q1",IF(MONTH(F84)<7,"Q2",IF(MONTH(F84)<10,"Q3","Q4")))) -> Q1 | I84: 2023 Q1 | J84: =J83+K83 -> 3454384.09 | K84: 63141.69 | L84: 0.0473 | M84: =ROUND(J84*L84/12,2) -> 13616.03 | N84: =N83+K84+M84 -> 3646791.13 | P84: 58899.46899 | Q84: =Q83+P84 -> 3357269.732
F85: 2023-02-01 | G85: 2023 | H85: Q1 | I85: 2023 Q1 | J85: =J84+K84 -> 3517525.78 | K85: 58133.2 | L85: 0.0473 | M85: =ROUND(J85*L85/12,2) -> 13864.91 | N85: 3718789.24 | P85: 58899.46899 | Q85: 3416169.201
F86: 2023-03-01 | G86: 2023 | H86: Q1 | I86: 2023 Q1 | J86: 3575658.98 | K86: 62564.69 | L86: 0.0473 | M86: 14094.06 | N86: 3795447.99 | P86: 58899.46899 | Q86: 3475068.67
F87: 2023-04-01 | G87: 2023 | H87: Q2 | I87: 2023 Q2 | J87: 3638223.67 | K87: 61094.95 | L87: 0.0498 | M87: 15098.63 | N87: 3871641.57 | P87: 58899.46899 | Q87: 3533968.139
F88: 2023-05-01 | G88: 2023 | H88: Q2 | I88: 2023 Q2 | J88: 3699318.62 | K88: 63433.48 | L88: 0.0498 | M88: 15352.17 | N88: 3950427.22 | P88: 58899.46899 | Q88: 3592867.608
F89: 2023-06-01 | G89: 2023 | H89: Q2 | I89: =CONCATENATE(G89," ",H89) -> 2023 Q2 | J89: 3762752.1 | K89: 63480.87 | L89: 0.0498 | M89: 15615.42 | N89: 4029523.51 | P89: 58899.46899 | Q89: 3651767.077
F90: 2023-07-01 | G90: 2023 | H90: Q3 | I90: 2023 Q3 | J90: 3826232.97 | K90: 65522.87 | L90: 0.0498 | M90: 15878.87 | N90: 4110925.25 | P90: 58899.46899 | Q90: 3710666.546
F91: 2023-08-01 | G91: 2023 | H91: Q3 | I91: 2023 Q3 | J91: 3891755.84 | K91: 63127.95 | L91: 0.0498 | M91: 16150.79 | N91: 4190203.99 | P91: 58899.46899 | Q91: 3769566.015
F92: 2023-09-01 | G92: 2023 | H92: Q3 | I92: 2023 Q3 | J92: 3954883.79 | K92: 61816.34 | L92: 0.0498 | M92: 16412.77 | N92: 4268433.1 | P92: 58899.46899 | Q92: 3828465.484
F93: 2023-10-01 | G93: 2023 | H93: Q4 | I93: 2023 Q4 | J93: 4016700.13 | K93: 63240.54 | L93: 0.0549 | M93: 18376.4 | N93: 4350050.04 | P93: 58899.46899 | Q93: 3887364.953
F94: 2023-11-01 | G94: 2023 | H94: Q4 | I94: 2023 Q4 | J94: 4079940.67 | K94: 62091.56 | L94: 0.0549 | M94: 18665.73 | N94: 4430807.33 | P94: 58899.46899 | Q94: 3946264.422
F95: 2023-12-01 | G95: 2023 | H95: =IF(MONTH(F95)=0,"",IF(MONTH(F95)<4,"Q1",IF(MONTH(F95)<7,"Q2",IF(MONTH(F95)<10,"Q3","Q4")))) -> Q4 | I95: 2023 Q4 | J95: 4142032.23 | K95: 67099.94 | L95: 0.0549 | M95: 18949.8 | N95: 4516857.07 | P95: 58899.46899 | Q95: 4005163.891
F96: 2024-01-01 | G96: =YEAR(F96) -> 2024 | H96: =IF(MONTH(F96)=0,"",IF(MONTH(F96)<4,"Q1",IF(MONTH(F96)<7,"Q2",IF(MONTH(F96)<10,"Q3","Q4")))) -> Q1 | I96: 2024 Q1 | J96: =J95+K95 -> 4209132.17 | K96: 63646.61 | L96: 0.0549 | M96: =ROUND(J96*L96/12,2) -> 19256.78 | N96: =N95+K96+M96 -> 4599760.46 | P96: 58899.46899 | Q96: =Q95+P96 -> 4064063.36
F97: 2024-02-01 | G97: 2024 | H97: Q1 | I97: 2024 Q1 | J97: 4272778.78 | K97: 59586.92 | L97: 0.0549 | M97: =ROUND(J97*L97/12,2) -> 19547.96 | N97: 4678895.34 | P97: 58899.46899 | Q97: 4122962.829
F98: 2024-03-01 | G98: 2024 | H98: Q1 | I98: 2024 Q1 | J98: 4332365.7 | K98: 62571.04 | L98: 0.0549 | M98: 19820.57 | N98: 4761286.95 | P98: 58899.46899 | Q98: 4181862.298
F99: 2024-04-01 | G99: 2024 | H99: Q2 | I99: 2024 Q2 | J99: 4394936.74 | K99: 61083.26 | L99: 0.0549 | M99: 20106.84 | N99: 4842477.05 | P99: 58899.46899 | Q99: 4240761.767
F100: 2024-05-01 | G100: 2024 | H100: Q2 | I100: 2024 Q2 | J100: 4456020 | K100: 63944.28 | L100: 0.0549 | M100: =ROUND(J100*L100/12,2) -> 20386.29 | N100: 4926807.62 | P100: 58899.46899 | Q100: 4299661.236
F101: 2024-06-01 | G101: 2024 | H101: Q2 | I101: 2024 Q2 | J101: 4519964.28 | K101: 63582.59 | L101: 0.0549 | M101: 20678.84 | N101: 5011069.05 | P101: 58899.46899 | Q101: 4358560.705
F102: 2024-07-01 | G102: 2024 | H102: Q3 | I102: 2024 Q3 | J102: 4583546.87 | K102: 65319.45 | L102: 0.052 | M102: 19862.04 | N102: 5096250.54 | P102: 58899.46899 | Q102: 4417460.174
F103: 2024-08-01 | G103: 2024 | H103: Q3 | I103: 2024 Q3 | J103: 4648866.32 | K103: 65172.2 | L103: 0.052 | M103: 20145.09 | N103: 5181567.83 | P103: 58899.46899 | Q103: 4476359.643
F104: 2024-09-01 | G104: 2024 | H104: Q3 | I104: 2024 Q3 | J104: 4714038.52 | K104: 62887.35 | L104: 0.052 | M104: 20427.5 | N104: 5264882.68 | P104: 58899.46899 | Q104: 4535259.112
F105: 2024-10-01 | G105: 2024 | H105: Q4 | I105: 2024 Q4 | J105: 4776925.87 | K105: 62356.62 | L105: 0.044 | M105: 17515.39 | N105: 5344754.69 | P105: 58899.46899 | Q105: 4594158.581
F106: 2024-11-01 | G106: 2024 | H106: Q4 | I106: 2024 Q4 | J106: 4839282.49 | K106: 60956.39 | L106: 0.044 | M106: 17744.04 | N106: 5423455.12 | P106: 58899.46899 | Q106: 4653058.05
F107: 2024-12-01 | G107: 2024 | H107: =IF(MONTH(F107)=0,"",IF(MONTH(F107)<4,"Q1",IF(MONTH(F107)<7,"Q2",IF(MONTH(F107)<10,"Q3","Q4")))) -> Q4 | I107: 2024 Q4 | J107: 4900238.88 | K107: 63905.4 | L107: 0.044 | M107: 17967.54 | N107: 5505328.06 | P107: 58899.46899 | Q107: 4711957.519
F108: 2025-01-01 | G108: =YEAR(F108) -> 2025 | H108: =IF(MONTH(F108)=0,"",IF(MONTH(F108)<4,"Q1",IF(MONTH(F108)<7,"Q2",IF(MONTH(F108)<10,"Q3","Q4")))) -> Q1 | I108: 2025 Q1 | J108: =J107+K107 -> 4964144.28 | K108: 63586.48 | L108: 0.0364 | M108: =ROUND(J108*L108/12,2) -> 15057.9 | N108: =N107+K108+M108 -> 5583972.44 | P108: 58899.46899 | Q108: =Q107+P108 -> 4770856.988
F109: 2025-02-01 | G109: 2025 | H109: Q1 | I109: 2025 Q1 | J109: 5027730.76 | K109: 58242.14 | L109: 0.0364 | M109: 15250.78 | N109: 5657465.36 | P109: 58899.46899 | Q109: 4829756.457
F110: 2025-03-01 | G110: 2025 | H110: Q1 | I110: 2025 Q1 | J110: 5085972.9 | K110: 62943.93 | L110: 0.0364 | M110: 15427.45 | N110: 5735836.74 | P110: 58899.46899 | Q110: 4888655.926
F111: 2025-04-01 | G111: 2025 | H111: Q2 | I111: 2025 Q2 | J111: 5148916.83 | K111: 62342.94 | L111: 0.0316 | M111: 13558.81 | N111: 5811738.49 | P111: 58899.46899 | Q111: 4947555.395
F112: 2025-05-01 | G112: 2025 | H112: Q2 | I112: 2025 Q2 | J112: 5211259.77 | K112: 64135.52 | L112: 0.0316 | M112: 13722.98 | N112: 5889596.99 | P112: 58899.46899 | Q112: 5006454.864
F113: 2025-06-01 | G113: 2025 | H113: Q2 | I113: 2025 Q2 | J113: 5275395.29 | K113: 64631.13 | L113: 0.0316 | M113: 13891.87 | N113: 5968119.99 | P113: 58899.46899 | Q113: 5065354.333
F114: 2025-07-01 | G114: 2025 | H114: Q3 | I114: 2025 Q3 | J114: 5340026.42 | K114: 67148.13 | L114: 0.0291 | M114: 12949.56 | N114: 6048217.68 | P114: 58899.46899 | Q114: 5124253.802
F115: 2025-08-01 | G115: 2025 | H115: Q3 | I115: 2025 Q3 | J115: 5407174.55 | K115: 64830.15 | L115: 0.0291 | M115: 13112.4 | N115: 6126160.23 | P115: 58899.46899 | Q115: 5183153.271
F116: 2025-09-01 | G116: 2025 | H116: Q3 | I116: 2025 Q3 | J116: 5472004.7 | K116: 62521.93 | L116: 0.0291 | M116: 13269.61 | N116: 6201951.77 | P116: 58899.46899 | Q116: 5242052.74
F117: 2025-10-01 | G117: 2025 | H117: Q4 | I117: 2025 Q4 | J117: 5534526.63 | K117: 64160.87 | L117: 0.0291 | M117: 13421.23 | N117: 6279533.87 | P117: 58899.46899 | Q117: 5300952.209
F118: 2025-11-01 | G118: 2025 | H118: Q4 | I118: 2025 Q4 | J118: 5598687.5 | K118: 62166.37 | L118: 0.0291 | M118: 13576.82 | N118: 6355277.06 | P118: 58899.46899 | Q118: 5359851.678
F119: 2025-12-01 | G119: 2025 | H119: =IF(MONTH(F119)=0,"",IF(MONTH(F119)<4,"Q1",IF(MONTH(F119)<7,"Q2",IF(MONTH(F119)<10,"Q3","Q4")))) -> Q4 | I119: 2025 Q4 | J119: 5660853.87 | K119: 65263.48 | L119: 0.0291 | M119: 13727.57 | N119: 6434268.11 | P119: 58899.46899 | Q119: 5418751.147
F120: 2026-01-01 | G120: =YEAR(F120) -> 2026 | H120: =IF(MONTH(F120)=0,"",IF(MONTH(F120)<4,"Q1",IF(MONTH(F120)<7,"Q2",IF(MONTH(F120)<10,"Q3","Q4")))) -> Q1 | I120: 2026 Q1 | J120: =J119+K119 -> 5726117.35 | K120: 64325.53721 | L120: 0.0255 | M120: =ROUND(J120*L120/12,2) -> 12168 | N120: =N119+K120+M120 -> 6510761.647 | P120: 58899.46899 | Q120: =Q119+P120 -> 5477650.616
F121: 2026-02-01 | G121: 2026 | H121: Q1 | I121: 2026 Q1 | J121: 5790442.887 | K121: 60165.13631 | L121: 0.0255 | M121: 12304.69 | N121: 6583231.474 | P121: 58899.46899 | Q121: 5536550.085
F122: 2026-03-01 | G122: 2026 | H122: Q1 | I122: 2026 Q1 | J122: 5850608.024 | K122: 64120.39764 | L122: 0.0255 | M122: 12432.54 | N122: 6659784.411 | P122: 58899.46899 | Q122: 5595449.554
F123: 2026-04-01 | G123: 2026 | H123: Q2 | I123: 2026 Q2 | J123: 5914728.421 | K123: 62620.78275 | L123: 0.0255 | M123: 12568.8 | N123: 6734973.994 | P123: 58899.46899 | Q123: 5654349.023
F124: 2026-05-01 | G124: 2026 | H124: Q2 | I124: 2026 Q2 | J124: 5977349.204 | K124: 64890.96612 | L124: 0.0255 | M124: 12701.87 | N124: 6812566.83 | P124: 58899.46899 | Q124: 5713248.492
F125: 2026-06-01 | G125: 2026 | H125: Q2 | I125: 2026 Q2 | J125: 6042240.17 | K125: 63921.41562 | L125: 0.0255 | M125: 12839.76 | N125: 6889328.006 | P125: 58899.46899 | Q125: 5772147.961
F126: 2026-07-01 | G126: 2026 | H126: Q3 | I126: 2026 Q3 | J126: 6106161.586 | K126: 66633.33651 | L126: 0.0255 | M126: 12975.59 | N126: 6968936.932 | P126: 58899.46899 | Q126: 5831047.43
F127: 2026-08-01 | G127: 2026 | H127: Q3 | I127: 2026 Q3 | J127: 6172794.922 | K127: 65968.44973 | L127: 0.0255 | M127: 13117.19 | N127: 7048022.572 | P127: 58899.46899 | Q127: 5889946.899
F128: 2026-09-01 | G128: 2026 | H128: Q3 | I128: 2026 Q3 | J128: 6238763.372 | K128: 63450.53885 | L128: 0.0255 | M128: 13257.37 | N128: 7124730.481 | P128: 58899.46899 | Q128: 5948846.368
F129: 2026-10-01 | G129: 2026 | H129: Q4 | I129: 2026 Q4 | J129: 6302213.911 | K129: 64340.97441 | L129: 0.0255 | M129: 13392.2 | N129: 7202463.655 | P129: 58899.46899 | Q129: 6007745.837
F130: 2026-11-01 | G130: 2026 | H130: Q4 | I130: 2026 Q4 | J130: 6366554.885 | K130: 62613.70802 | L130: 0.0255 | M130: 13528.93 | N130: 7278606.293 | P130: 58899.46899 | Q130: 6066645.306
F131: 2026-12-01 | G131: 2026 | H131: =IF(MONTH(F131)=0,"",IF(MONTH(F131)<4,"Q1",IF(MONTH(F131)<7,"Q2",IF(MONTH(F131)<10,"Q3","Q4")))) -> Q4 | I131: 2026 Q4 | J131: 6429168.593 | K131: 64545.14476 | L131: 0.0255 | M131: 13661.98 | N131: 7356813.418 | P131: 58899.46899 | Q131: 6125544.775

Sheet 6. ICMIRR_2018
A11: Sheet 6: | C11: Incremental Capital Adjustment
F23: Actual
I24: 2018 OEB Approved
C26: Return on Rate Base
C27: Incremental Capital CAPEX | F27: ='2. ICM_Costs'!G42 -> 6804600 | G27: B | K27: 6800377
C28: Depreciation Expense | F28: =-'4. ICM_Assets_and_Rate_Base'!I29 -> 170115 | G28: C | K28: 226679
C29: Incremental Capital CAPEX to be included in Rate Base | F29: =F27-F28 -> 6634485 | G29: D = B - C | K29: =K27-K28 -> 6573698
C31: Deemed ShortTerm Debt % | D31: ='3. Cost_of_Service_Parameters'!G22 -> 0.04 | E31: E | F31: =F29*D31 -> 265379.4 | G31: G = D * E | I31: =D31 -> 0.04 | K31: =K29*I31 -> 262947.92
C32: Deemed Long Term Debt % | D32: ='3. Cost_of_Service_Parameters'!G23 -> 0.56 | E32: F | F32: =F29*D32 -> 3715311.6 | G32: H = D * F | I32: =D32 -> 0.56 | K32: =K29*I32 -> 3681270.88
C34: Short Term Interest | D34: ='3. Cost_of_Service_Parameters'!G29 -> 0.0216 | E34: I | F34: =F31*D34 -> 5732.19504 | G34: K = G * I | I34: =D34 -> 0.0216 | K34: =K31*I34 -> 5679.675072
C35: Long Term Interest | D35: ='3. Cost_of_Service_Parameters'!G30 -> 0.0607 | E35: J | F35: =F32*D35 -> 225519.4141 | G35: L = H * J | I35: =D35 -> 0.0607 | K35: =K32*I35 -> 223453.1424
C37: Return on Rate Base - Interest | F37: =SUM(F34:F35) -> 231251.6092 | G37: M = K + L | K37: =SUM(K34:K35) -> 229132.8175
N39: aaa
C40: Deemed Equity % | D40: ='3. Cost_of_Service_Parameters'!G24 -> 0.4 | E40: N | F40: =F29*D40 -> 2653794 | G40: P = D * N | I40: 0.4 | K40: =K29*I40 -> 2629479.2
C42: Return on Rate Base -Equity | D42: ='3. Cost_of_Service_Parameters'!G31 -> 0.093 | E42: O | F42: =F40*D42 -> 246802.842 | G42: Q = P * O | I42: =D42 -> 0.093 | K42: =K40*I42 -> 244541.5656
C44: Return on Rate Base - Total | F44: =F37+F42 -> 478054.4512 | G44: R = M + Q | K44: =K37+K42 -> 473674.3831
C48: Amortization Expense
C50: Amortization Expense - Incremental | E50: C | F50: =F28 -> 170115 | G50: S | K50: =K28 -> 226679
C53: Grossed up PIL's
C55: Regulatory Taxable Income | E55: O | F55: =F42 -> 246802.842 | G55: T | K55: =K42 -> 244541.5656
C57: Add Back Amortization Expense | E57: S | F57: =F50 -> 170115 | G57: U | K57: =K50 -> 226679
C59: Deduct CCA | F59: 453639.533 | G59: V | K59: 453358
C61: Incremental Taxable Income | F61: =F55+F57-F59 -> -36721.69104 | G61: W = T + U - V | K61: =K55+K57-K59 -> 17862.5656
C63: Current Tax Rate (F1.1 Z-Factor Tax Changes) | D63: ='3. Cost_of_Service_Parameters'!G40 -> 0.265 | E63: X | I63: =D63 -> 0.265
C65: PIL's Before Gross Up | F65: =F61*D63 -> -9731.248127 | G65: Y = W * X | K65: =K61*I63 -> 4733.579884
C67: Incremental Grossed Up PIL's | F67: =F65/(1-D63) -> -13239.79337 | G67: Z = Y / ( 1 - X ) | K67: =K65/(1-I63) -> 6440.24474
C70: Ontario Capital Tax
C71: Incremental Capital CAPEX | F71: =F27 -> 6804600 | G71: AA | K71: =K27 -> 6800377
C73: Less : Available Capital Exemption (if any) | F73: 0 | G73: AB | K73: 0
C75: Incremental Capital CAPEX subject to OCT | F75: =F71-F73 -> 6804600 | G75: AC = AA - AB | K75: =K71-K73 -> 6800377
C77: Ontario Capital Tax Rate (F1.1 Z-Factor Tax Changes) | D77: 0 | E77: AD
C79: Incremental Ontario Capital Tax | F79: =F75*D77 -> 0 | G79: AE = AC * AD | K79: =K75*I77 -> 0
C82: Incremental Revenue Requirement
C83: Return on Rate Base - Total | E83: Q | F83: =F44 -> 478054.4512 | G83: AF | K83: =K44 -> 473674.3831
C84: Amortization Expense - Total | E84: S | F84: =F50 -> 170115 | G84: AG | K84: =K50 -> 226679
C85: Incremental Grossed Up PIL's | E85: Z | F85: =F67 -> -13239.79337 | G85: AH | K85: =K67 -> 6440.24474
C86: Incremental Ontario Capital Tax | E86: AE | F86: =F79 -> 0 | G86: AI | K86: =K79 -> 0
C88: Incremental Revenue Requirement | F88: =SUM(F83:F86) -> 634929.6578 | G88: AJ = AF + AG + AH + AI | K88: =SUM(K83:K86) -> 706793.6278

Sheet 8. Opex Interest Annual
B13: This worksheet calculates the interest on amortization/depreciation expense, in the absence of monthly data.
B16: Sheet 8: Interest on Amortization (Annual Data)
B21: Year | D21: OM&A | F21: Amortization Expense | H21: Cumulative OM&A and Amortization Expense | J21: Average Cumulative OM&A and Amortization Expense | L21: Average Annual Prescribed Interest Rate for Deferral and Variance Accounts (from Sheet 7) | N21: Simple Interest on OM&A and Amortization Expenses
F22: (from Sheet 4)
B23: 2018 | D23: 0 | F23: =-'4. ICM_Assets_and_Rate_Base'!I295 -> 170115 | H23: =D23+F23 -> 170115 | J23: =H23/2 -> 85057.5 | L23: =AVERAGE('7. Rate Rider Revs'!C24:C27) -> 0.018625 | N23: =J23*L23 -> 1584.195937
B24: 2019 | D24: 0 | F24: =-'4. ICM_Assets_and_Rate_Base'!K295 -> 170115 | H24: =H23+D24+F24 -> 340230 | J24: =(H24+H23)/2 -> 255172.5 | L24: =AVERAGE('7. Rate Rider Revs'!C28:C31) -> 0.022475 | N24: =J24*L24 -> 5735.001937
B25: 2020 | D25: 0 | F25: =-'4. ICM_Assets_and_Rate_Base'!M295 -> 170115 | H25: =H24+D25+F25 -> 510345 | J25: =(H25+H24)/2 -> 425287.5 | L25: =AVERAGE('7. Rate Rider Revs'!C32:C35) -> 0.01375 | N25: =J25*L25 -> 5847.703125
B26: 2021 | D26: 0 | F26: =-'4. ICM_Assets_and_Rate_Base'!O295 -> 170115 | H26: 680460 | J26: 595402.5 | L26: =AVERAGE('7. Rate Rider Revs'!C36:C39) -> 0.0057 | N26: =J26*L26 -> 3393.79425
B27: 2022 | D27: 0 | F27: =-'4. ICM_Assets_and_Rate_Base'!Q295 -> 170115 | H27: =H26+D27+F27 -> 850575 | J27: 765517.5 | L27: =AVERAGE('7. Rate Rider Revs'!C40:C43) -> 0.01915 | N27: =J27*L27 -> 14659.66013
B28: 2023 | D28: 0 | F28: =-'4. ICM_Assets_and_Rate_Base'!S295 -> 170115 | H28: 1020690 | J28: 935632.5 | L28: =AVERAGE('7. Rate Rider Revs'!C44:C47) -> 0.05045 | N28: 47202.65962
B29: 2024 | D29: 0 | F29: =-'4. ICM_Assets_and_Rate_Base'!U295 -> 170115 | H29: 1190805 | J29: 1105747.5 | L29: =AVERAGE('7. Rate Rider Revs'!C48:C51) -> 0.05145 | N29: 56890.70887
B30: 2025 | D30: 0 | F30: =-'4. ICM_Assets_and_Rate_Base'!W295 -> 170115 | H30: 1360920 | J30: 1275862.5 | L30: =AVERAGE('7. Rate Rider Revs'!C52:C55) -> 0.03155 | N30: 40253.46188
B31: 2026 | D31: 0 | F31: =-'4. ICM_Assets_and_Rate_Base'!Y295 -> 170115 | H31: 1531035 | J31: 1445977.5 | L31: =AVERAGE('7. Rate Rider Revs'!C56:C59) -> 0.0255 | N31: =J31*L31 -> 36872.42625
B34: Cumulative Interest to 2018 | N34: =SUM($N$23:N23) -> 1584.195937
B35: Cumulative Interest to 2019 | N35: =SUM($N$23:N24) -> 7319.197875
B36: Cumulative Interest to 2020 | N36: =SUM($N$23:N25) -> 13166.901
B37: Cumulative Interest to 2021 | N37: =SUM($N$23:N26) -> 16560.69525
B38: Cumulative Interest to 2022 | N38: =SUM($N$23:N27) -> 31220.35537
B39: Cumulative Interest to 2023 | N39: =SUM($N$23:N28) -> 78423.015
B40: Cumulative Interest to 2024 | N40: =SUM($N$23:N29) -> 135313.7239
B41: Cumulative Interest to 2025 | N41: =SUM($N$23:N30) -> 175567.1857
B42: Cumulative Interest to 2026 | N42: =SUM($N$23:N31) -> 212439.612

Sheet 9. IRR
B14: This worksheet calculates the ICM Incremental Revenue Requirement.
B17: Sheet 9: ICM Incremental Revenue Requirement
G20: 2018 | I20: 2019 | K20: 2020 | M20: 2021 | O20: 2022 | Q20: 2023 | S20: 2024 | U20: 2025 | W20: 2026 | Y20: Total | AC20: 2018 | AD20: =AC20+1 -> 2019 | AE20: =AD20+1 -> 2020 | AF20: 2021 | AG20: 2022 | AH20: 2023 | AI20: 2024 | AJ20: 2025 | AK20: 2026
C22: Deferred and forecasted ICM Incremental Revenue Requirement (from Sheet 6) | G22: ='6. ICMIRR_2018'!F88*8/12 -> 423286.4385 | I22: ='6. ICMIRR_2018'!$F$88 -> 634929.6578 | K22: ='6. ICMIRR_2018'!$F$88 -> 634929.6578 | M22: ='6. ICMIRR_2018'!$F$88 -> 634929.6578 | O22: ='6. ICMIRR_2018'!$F$88 -> 634929.6578 | Q22: ='6. ICMIRR_2018'!$F$88 -> 634929.6578 | S22: ='6. ICMIRR_2018'!$F$88 -> 634929.6578 | U22: ='6. ICMIRR_2018'!$F$88 -> 634929.6578 | W22: ='6. ICMIRR_2018'!$F$88 -> 634929.6578 | Y22: =SUM(G22:W22) -> 5502723.701 | AB22: Revenue Requirement | AC22: =G22 -> 423286.4385 | AD22: =I22 -> 634929.6578 | AE22: =K22 -> 634929.6578 | AF22: =M22 -> 634929.6578 | AG22: =O22 -> 634929.6578 | AH22: =Q22 -> 634929.6578 | AI22: =S22 -> 634929.6578 | AJ22: =U22 -> 634929.6578 | AK22: =W22 -> 634929.6578
AB23: Interest on Deferred Amortization Expense | AC23: =G24 -> 1584.195937 | AD23: =I24 -> 5735.001937 | AE23: =K24 -> 5847.703125 | AF23: =M24 -> 3393.79425 | AG23: =O24 -> 14659.66013 | AH23: =Q27 -> 754748.08 | AI23: =S27 -> 755012.11 | AJ23: =U24 -> 40253.46188 | AK23: =W24 -> 36872.42625
C24: Interest on Deferred and forecasted Amortization Expense (Sheet 8) | G24: ='8. Opex Interest Annual'!$N$23 -> 1584.195937 | I24: ='8. Opex Interest Annual'!$N$24 -> 5735.001937 | K24: ='8. Opex Interest Annual'!$N$25 -> 5847.703125 | M24: ='8. Opex Interest Annual'!$N$26 -> 3393.79425 | O24: ='8. Opex Interest Annual'!$N$27 -> 14659.66013 | Q24: ='8. Opex Interest Annual'!$N$28 -> 47202.65962 | S24: ='8. Opex Interest Annual'!$N$29 -> 56890.70887 | U24: ='8. Opex Interest Annual'!$N$30 -> 40253.46188 | W24: ='8. Opex Interest Annual'!$N$31 -> 36872.42625 | Y24: =SUM(G24:W24) -> 212439.612 | AB24: Subtotal A | AC24: =AC22+AC23 -> 424870.6345 | AD24: =AD22+AD23 -> 640664.6597 | AE24: 640777.3609 | AF24: 638323.452 | AG24: 649589.3179 | AH24: 1389677.738 | AI24: 1389941.768 | AJ24: 675183.1197 | AK24: 671802.084
AB25: Less:
AB26: ICM Funding adders | AC26: =G27 -> 494014.7 | AD26: =I27 -> 740117.44
C27: ICM Rate Rider Revenues (from Sheet 7) | G27: =SUM('7. Rate Rider Revs'!K26:K35) -> 494014.7 | I27: =SUM('7. Rate Rider Revs'!K36:K47) -> 740117.44 | K27: =SUM('7. Rate Rider Revs'!K48:K59) -> 731320.63 | M27: =SUM('7. Rate Rider Revs'!K60:K71) -> 740564.34 | O27: =SUM('7. Rate Rider Revs'!K72:K83) -> 748366.98 | Q27: =SUM('7. Rate Rider Revs'!K84:K95) -> 754748.08 | S27: =SUM('7. Rate Rider Revs'!K96:K107) -> 755012.11 | U27: =SUM('7. Rate Rider Revs'!K108:K119) -> 761973.07 | W27: =SUM('7. Rate Rider Revs'!K120:K131) -> 767596.3879 | Y27: =SUM(G27:W27) -> 6493713.738 | AB27: ICM Funding Adder Interest | AC27: =G29 -> 2991.21
AB28: Subtotal B
C29: ICM Rate Rider Interest (from Sheet 7) | G29: =SUM('7. Rate Rider Revs'!M27:M35) -> 2991.21 | I29: =SUM('7. Rate Rider Revs'!M36:M47) -> 18519.04 | K29: =SUM('7. Rate Rider Revs'!M48:M59) -> 20081.53 | M29: =SUM('7. Rate Rider Revs'!M60:M71) -> 13114.92 | O29: =SUM('7. Rate Rider Revs'!M72:M83) -> 60942.62 | Q29: =SUM('7. Rate Rider Revs'!M84:M95) -> 192075.58 | S29: =SUM('7. Rate Rider Revs'!M96:M107) -> 233458.88 | U29: =SUM('7. Rate Rider Revs'!M108:M119) -> 166966.98 | W29: =SUM('7. Rate Rider Revs'!M120:M131) -> 154948.92 | Y29: =SUM(G29:W29) -> 863099.68 | AB29: ICM True-up Amount (A-B)
C31: Net Deferred Revenue Requirement | G31: =(G22+G24)-(G27+G29) -> -72135.27554 | I31: =(I22+I24)-(I27+I29) -> -117971.8203 | K31: =(K22+K24)-(K27+K29) -> -110624.7991 | M31: =(M22+M24)-(M27+M29) -> -115355.808 | O31: =(O22+O24)-(O27+O29) -> -159720.2821 | Q31: =(Q22+Q24)-(Q27+Q29) -> -264691.3426 | S31: =(S22+S24)-(S27+S29) -> -296650.6233 | U31: =(U22+U24)-(U27+U29) -> -253756.9303 | W31: =(W22+W24)-(W27+W29) -> -250743.2239 | Y31: =(Y22+Y24)-(Y27+Y29) -> -1641650.105
